{"text_format":"1","workbook":"xlsx","n_sheets":3,"sheets":["Eingabe","Musterwerte Validierung Info","Berechnung"],"not_rendered":{"charts":0,"images":6,"macros":1,"external_links":0,"defined_names":2,"comments":0,"pivot_tables":0},"unopened":[],"bounds":{"document_bytes":16777216,"sheet_cells":100000,"rows_first":2000,"rows_last":500,"rows_between":2000,"halvings":0,"cell_chars":16384,"cell_head_chars":4096},"cells_cut":0,"cells_raw":0,"read":"whole","date_system":"1900"}

{"sheet":"Eingabe","index":0,"n_rows":57,"n_cols":26,"rows_kept":57,"cut":false,"hidden":false,"merged":[[18,24,18,25],[17,17,17,18],[18,17,18,18],[27,17,27,18],[10,17,10,18],[11,17,11,18],[16,24,16,25],[13,17,13,18],[15,17,15,18],[16,17,16,18],[12,20,12,25],[17,24,17,25],[7,24,7,25],[8,24,8,25],[9,24,9,25],[14,17,14,18],[1,1,3,7],[5,1,6,1],[5,2,5,7],[5,8,6,8],[5,9,6,9],[1,8,3,17],[5,10,6,10],[1,18,3,25],[7,17,7,18],[8,17,8,18],[9,17,9,18],[10,24,10,25],[28,13,28,15],[20,17,20,18],[21,17,21,18],[23,17,23,18],[24,17,24,18],[25,13,25,15],[26,13,26,15],[27,13,27,15],[28,17,28,18],[25,17,25,18],[26,17,26,18]]}
[]
[null,null,null,null,null,null,null,null,"Messsystemanalyse Verfahren 7\nattributive Merkmale (Bosch Heft Nr. 10 / AIAG)"]
[]
[]
[]
[null,"Teil","Prüfergebnisse",null,null,null,null,null,"Referenz"," Ref. Wert","Code"]
[null,null,"A-1","A-2","A-3","A-4","A-5","A-6",null,null,null,null,null,"Merkmal",null,null,null,null,null,null,"Messmittel"]
[null,1,1,1,1,1,1,1,1,null,{"$f":"IF(C8<>\"\",IF(SUM(C8:H8)=COUNT(C8:H8),\"+\",IF(SUM(C8:H8)=0,\"-\",\"x\")),\"\")","v":"+"},null,null,"Bezeichnung",null,null,null,null,null,null,"Name"]
[null,{"$f":"B8+1","v":2},1,1,1,1,1,1,1,null,{"$f":"IF(C9<>\"\",IF(SUM(C9:H9)=COUNT(C9:H9),\"+\",IF(SUM(C9:H9)=0,\"-\",\"x\")),\"\")","v":"+"},null,null,"Merkmalsnummer",null,null,null,null,null,null,"Nummer"]
[null,3,0,0,0,0,0,0,0,null,"-",null,null,"Masseinheit",null,null,null,null,null,null,"Standort"]
[null,4,0,0,0,0,0,0,0,null,"-",null,null,"Zeichnungsnummer",null,null,null,null,null,null,"Kalibrierschein"]
[null,5,0,0,0,0,0,0,0,null,"-",null,null,"Änderungsstand"]
[null,6,1,1,0,1,1,0,1,null,"x",null,null,null,null,null,null,null,null,null,"Bewertung Ergebnis / Fleiss Kappa"]
[null,7,1,1,1,1,1,1,1,null,"+",null,null,"Text 1",null,null,null,null,null,null,"Ergebnis <=",null,null,0.8,0.95,1]
[null,8,1,1,1,1,1,1,1,null,"+",null,null,"Text 2",null,null,null,null,null,null,"Fleiss Kappa <=",null,null,0.8,0.95,1]
[null,9,0,0,0,0,0,0,0,null,"-",null,null,"Text 3",null,null,null,null,null,null,"Spezifikation"]
[null,10,1,1,1,1,1,1,1,null,"+",null,null,"Prüfdatum",null,null,null,null,null,null,"Untere Spez.-Grenze"]
[null,11,1,1,1,1,1,1,1,null,"+",null,null,"Prüfung durch ",null,null,null,null,null,null,"Obere Spez.-Grenze"]
[null,12,0,0,0,0,0,0,0,null,"-",null,null,"Prüfung durch Name",null,null,null,null,null,null,"Auflösung"]
[null,13,1,1,1,1,1,1,1,null,"+"]
[null,14,1,1,0,1,1,1,1,null,"x",null,null,"Anzahl Durchgänge",null,null,null,{"$f":"IF(C8<>\"\",COUNT(C8:H8),\"\")","v":6}]
[null,15,1,1,1,1,1,1,1,null,"+",null,null,"Anzahl Teile",null,null,null,{"$f":"IF(C8<>\"\",COUNT(C8:C57),\"\")","v":30}]
[null,16,1,1,1,1,1,1,1,null,"+"]
[null,17,1,1,1,1,1,1,1,null,"+",null,null,"Geprüft gesamt",null,null,null,{"$f":"Berechnung!Y28","v":30}]
[null,18,1,1,1,1,1,1,1,null,"+",null,null,"Anzahl richtig",null,null,null,{"$f":"Berechnung!Y29","v":24}]
[null,19,1,1,1,1,1,1,1,null,"+",null,null,"95% obere CI",null,null,null,{"$f":"Berechnung!Y30","v":0.92286448799893439}]
[null,20,1,1,1,1,1,1,1,null,"+",null,null,"Ergebnis",null,null,null,{"$f":"Berechnung!Y31","v":0.8}]
[null,21,1,1,0,1,0,1,1,null,"x",null,null,"95% untere CI",null,null,null,{"$f":"Berechnung!Y32","v":0.61433348900339269}]
[null,22,0,0,1,0,1,0,0,null,"x",null,null,"Fleiss Kappa",null,null,null,{"$f":"Berechnung!Y33","v":0.79578181818181815}]
[null,23,1,1,1,1,1,1,1,null,"+"]
[null,24,1,1,1,1,1,1,1,null,"+"]
[null,25,0,0,0,0,0,0,0,null,"-"]
[null,26,0,1,0,0,0,0,0,null,"x"]
[null,27,1,1,1,1,1,1,1,null,"+"]
[null,28,1,1,1,1,1,1,1,null,"+"]
[null,29,1,1,1,1,1,1,1,null,"+"]
[null,30,0,0,0,0,0,1,0,null,"x"]
[null,31,null,null,null,null,null,null,null,null,""]
[null,32,null,null,null,null,null,null,null,null,""]
[null,33,null,null,null,null,null,null,null,null,""]
[null,34,null,null,null,null,null,null,null,null,""]
[null,35,null,null,null,null,null,null,null,null,""]
[null,36,null,null,null,null,null,null,null,null,""]
[null,37,null,null,null,null,null,null,null,null,""]
[null,38,null,null,null,null,null,null,null,null,""]
[null,39,null,null,null,null,null,null,null,null,""]
[null,40,null,null,null,null,null,null,null,null,""]
[null,{"$f":"B47+1","v":41},null,null,null,null,null,null,null,null,"",null,"Anmerkungen:"]
[null,{"$f":"B48+1","v":42},null,null,null,null,null,null,null,null,"",null,"Nach Bosch Heft Nr. 10 Kapitel 5.2 sind bei Prüfautomaten die Teile durch "]
[null,43,null,null,null,null,null,null,null,null,"",null,"mindestens 6 Durchläufe zu prüfen."]
[null,44,null,null,null,null,null,null,null,null,""]
[null,45,null,null,null,null,null,null,null,null,""]
[null,46,null,null,null,null,null,null,null,null,""]
[null,47,null,null,null,null,null,null,null,null,""]
[null,48,null,null,null,null,null,null,null,null,""]
[null,49,null,null,null,null,null,null,null,null,""]
[null,50,null,null,null,null,null,null,null,null,""]

{"sheet":"Musterwerte Validierung Info","index":1,"n_rows":93,"n_cols":24,"rows_kept":93,"cut":false,"hidden":false,"merged":[]}
[null,"Info",null,"roland.schnurr@sixsigmablackbelt.de"]
[null,"Page",null,"www.sixsigmablackbelt.de"]
[]
[null,null,null,null,null,null,null,null,null,null,null,null,null,null,null,null,null,null,null,null,null,null,null,"Werte berechnet mit Minitab"]
["Teil","A-1","A-2","A-3","A-4","A-5","A-6","Referenz"]
[1,1,1,1,1,1,1,1]
[2,1,1,1,1,1,1,1]
[3,0,0,0,0,0,0,0]
[4,0,0,0,0,0,0,0]
[5,0,0,0,0,0,0,0]
[6,1,1,0,1,1,0,1]
[7,1,1,1,1,1,1,1]
[8,1,1,1,1,1,1,1]
[9,0,0,0,0,0,0,0]
[10,1,1,1,1,1,1,1]
[11,1,1,1,1,1,1,1]
[12,0,0,0,0,0,0,0]
[13,1,1,1,1,1,1,1]
[14,1,1,0,1,1,1,1]
[15,1,1,1,1,1,1,1]
[16,1,1,1,1,1,1,1]
[17,1,1,1,1,1,1,1]
[18,1,1,1,1,1,1,1]
[19,1,1,1,1,1,1,1]
[20,1,1,1,1,1,1,1]
[21,1,1,0,1,0,1,1]
[22,0,0,1,0,1,0,0]
[23,1,1,1,1,1,1,1]
[24,1,1,1,1,1,1,1]
[25,0,0,0,0,0,0,0]
[26,0,1,0,0,0,0,0]
[27,1,1,1,1,1,1,1]
[28,1,1,1,1,1,1,1]
[29,1,1,1,1,1,1,1]
[30,0,0,0,0,0,1,0]
[31,1,1,1,1,1,1,1]
[32,1,1,1,1,1,1,1]
[33,1,1,1,1,1,1,1]
[34,0,0,1,0,0,1,0]
[35,1,1,1,1,1,1,1]
[36,1,1,0,1,1,1,1]
[37,0,0,0,0,0,0,0]
[38,1,1,1,1,1,1,1]
[39,0,0,0,0,0,0,0]
[40,1,1,1,1,1,1,1]
[41,1,1,1,1,1,1,1]
[42,0,0,0,0,0,0,0]
[43,1,0,1,1,1,1,1]
[44,1,1,1,1,1,1,1]
[45,0,0,0,0,0,0,0]
[46,1,1,1,1,1,1,1]
[47,1,1,1,1,1,1,1]
[48,0,0,0,0,0,0,0]
[49,1,1,1,1,1,1,1]
[50,0,0,0,0,0,0,0]
[]
[]
[]
[]
[]
[]
[]
["Teil","A-1","A-2","A-3","A-4","A-5","A-6","Referenz"]
[1,1,1,1,1,1,1,1]
[2,1,1,1,1,1,1,1]
[3,0,0,0,0,0,0,0]
[4,0,0,0,0,0,0,0]
[5,0,0,0,0,0,0,0]
[6,1,1,0,1,1,0,1]
[7,1,1,1,1,1,1,1]
[8,1,1,1,1,1,1,1]
[9,0,0,0,0,0,0,0]
[10,1,1,1,1,1,1,1]
[11,1,1,1,1,1,1,1]
[12,0,0,0,0,0,0,0]
[13,1,1,1,1,1,1,1]
[14,1,1,0,1,1,1,1]
[15,1,1,1,1,1,1,1]
[16,1,1,1,1,1,1,1]
[17,1,1,1,1,1,1,1]
[18,1,1,1,1,1,1,1]
[19,1,1,1,1,1,1,1]
[20,1,1,1,1,1,1,1]
[21,1,1,0,1,0,1,1]
[22,0,0,1,0,1,0,0]
[23,1,1,1,1,1,1,1]
[24,1,1,1,1,1,1,1]
[25,0,0,0,0,0,0,0]
[26,0,1,0,0,0,0,0]
[27,1,1,1,1,1,1,1]
[28,1,1,1,1,1,1,1]
[29,1,1,1,1,1,1,1]
[30,0,0,0,0,0,1,0]

{"sheet":"Berechnung","index":2,"n_rows":306,"n_cols":90,"rows_kept":306,"cut":false,"hidden":true,"merged":[[44,18,44,19],[44,20,44,21],[44,22,44,23],[44,24,44,26],[45,15,45,17],[45,18,45,19],[45,20,45,21],[45,22,45,23],[45,24,45,25],[43,18,43,19],[43,24,43,26],[37,18,37,19],[37,20,37,21],[37,22,37,23],[37,24,37,26],[38,18,38,19],[38,24,38,26],[39,18,39,19],[40,18,40,19],[41,18,41,19],[42,18,42,19],[42,24,42,26],[34,15,34,26],[35,18,35,23],[35,24,36,26],[36,18,36,19],[36,20,36,21],[36,22,36,23],[31,15,31,17],[31,18,31,19],[31,20,31,21],[31,22,31,23],[31,24,31,26],[32,15,32,17],[32,18,32,19],[32,20,32,21],[32,22,32,23],[32,24,32,26],[29,18,29,19],[29,20,29,21],[29,22,29,23],[29,24,29,26],[30,18,30,19],[30,20,30,21],[30,22,30,23],[30,24,30,26],[27,18,27,19],[27,20,27,21],[27,22,27,23],[27,24,27,26],[28,18,28,19],[28,20,28,21],[28,22,28,23],[28,24,28,26],[25,18,25,23],[25,24,25,26],[26,18,26,19],[26,20,26,21],[26,22,26,23],[26,24,26,26],[24,15,24,26],[7,20,7,21],[7,27,7,28],[8,20,8,21],[8,27,8,28],[9,20,9,21],[9,27,9,28],[10,20,10,21],[10,27,10,28],[11,20,11,21],[15,27,15,28],[16,27,16,28],[1,1,3,10],[1,11,3,19],[1,20,3,27],[5,1,6,1],[5,2,5,10],[5,11,6,11],[5,12,6,12],[5,13,6,13]]}
[]
[null,null,null,null,null,null,null,null,null,null,null,"Messsystemanalyse Verfahren 7\nattributive Merkmale (Bosch Heft Nr. 10 / AIAG)"]
[null,null,null,null,null,null,null,null,null,null,null,null,null,null,null,null,null,null,null,null,null,null,null,null,null,null,null,null,null,null,null,null,{"$f":"TODAY()","v":"2023-07-04"},null,"2023-07-04",{"$f":"IF(AG3=AI3,1,0)","v":1},null,null,null,null,null,null,null,null,null,null,null,null,null,null,null,null,"A*B*C"]
[null,null,null,null,null,null,null,null,null,null,null,null,null,null,null,null,null,null,null,null,null,null,null,null,null,null,null,null,null,null,null,null,null,null,null,null,null,null,null,null,null,null,null,null,null,null,null,null,null,null,null,null,"nik",null,null,"nik*(Nik-1)"]
[null,null,null,null,null,null,null,null,null,null,null,null,null,null,null,null,null,null,null,null,null,null,null,null,null,null,null,null,null,null,null,null,"3 Durchl",null,"mix","2 Durchl.",null,null,null,null,null,null,null,null,null,null,null,null,null,null,null,null,"k=1","K=2",null,"k=1","K=2",null,null,null,null,null,null,null,null,null,null,null,null,null,null,null,null,null,null,null,null,null,null,null,null,null,null,null,"Minitab Tabelle"]
[null,"Part","Appraiser-Evaluation",null,null,null,null,null,null,null,null,"Stan-dard","Standard Value","Code",null,null,null,null,null,null,null,null,null,null,null,null,null,null,null,null,null,null,"A",null,null,null,null,null,null,null,"B",null,null,null,"C",null,null,null,"All",null,null,null,0,1,null,0,1,null,null,null,null,"A*A",null,"B*B",null,null,"C*C",null,null,null,null,"A1-Ref","A2-Ref","A3-Ref","B1-Ref","B2-Ref","B3-Ref","C1-Ref","C2-Ref","C3-Ref",null,null,null,null,"Reihenfolge","Prüfer","Versuch","Prüfeinheit","Ergebnis","Referenz"]
[null,null,"A-1","A-2","A-3","B-1","B-2","B-3","C-1","C-2","C-3",null,null,null,null,null,null,null,null,null,null,null,null,null,null,null,null,null,null,null,null,null,{"$f":"IF(C8<>\"\",IF(AND(C8=D8,D8=E8),1,0),\"\")","v":1},{"$f":"IF(C8<>\"\",IF(AND(C8=D8,D8=E8,E8=L8),1,0),\"\")","v":1},{"$f":"IF(AG7<>\"\",IF(AG7<>AH7,$L8,\"\"),\"\")","v":""},{"$f":"IF(C8<>\"\",IF(AND(C8=D8),1,0),\"\")","v":1},{"$f":"IF(C8<>\"\",IF(AND(C8=D8,D8=L8),1,0),\"\")","v":1},{"$f":"IF(AJ7<>\"\",IF(AJ7<>AK7,$L8,\"\"),\"\")","v":""},null,null,{"$f":"IF(F8<>\"\",IF(AND(F8=G8,F8=H8),1,0),\"\")","v":1},{"$f":"IF(F8<>\"\",IF(AND(F8=G8,G8=H8,H8=L8),1,0),\"\")","v":1},{"$f":"IF(AO7<>\"\",IF(AO7<>AP7,L8,\"\"),\"\")","v":""},null,{"$f":"IF(I8<>\"\",IF(AND(I8=J8,J8=K8),1,0),\"\")","v":""},{"$f":"IF(I8<>\"\",IF(AND(I8=J8,J8=K8,K8=L8),1,0),\"\")","v":""},{"$f":"IF(AS7<>\"\",IF(AS7<>AT7,L8,\"\"),\"\")","v":""},null,{"$f":"IF(C8<>\"\",IF(OR(SUM(C8:K8)=COUNT(C8:K8),SUM(C8:K8)=0),1,0),\"\")","v":1},{"$f":"IF(AT7<>\"\",IF(AH7+AP7+AT7=3,1,0),\"\")","v":""},null,null,null,null,null,null,null,null,null,null,null,null,null,null,null,null,null,null,null,null,null,null,null,null,null,null,null,null,null,null,null,null,null,null,1,"A",1,1,{"$f":"C8","v":1},{"$f":"L8","v":1}]
[null,1,{"$f":"IF(Eingabe!C8=\"\",\"\",Eingabe!C8)","v":1},{"$f":"IF(Eingabe!D8=\"\",\"\",Eingabe!D8)","v":1},{"$f":"IF(Eingabe!E8=\"\",\"\",Eingabe!E8)","v":1},{"$f":"IF(Eingabe!F8=\"\",\"\",Eingabe!F8)","v":1},{"$f":"IF(Eingabe!G8=\"\",\"\",Eingabe!G8)","v":1},{"$f":"IF(Eingabe!H8=\"\",\"\",Eingabe!H8)","v":1},null,null,null,{"$f":"IF(Eingabe!I8=\"\",\"\",Eingabe!I8)","v":1},null,{"$f":"IF(C8<>\"\",IF(SUM(C8:K8)=COUNT(C8:K8),\"+\",IF(SUM(C8:K8)=0,\"-\",\"x\")),\"\")","v":"+"},null,null,"Reference Value",null,null,null,null,null,null,"Date Preformed",null,null,null,null,null,null,null,null,1,1,{"$f":"IF(AG8<>\"\",IF(AG8<>AH8,$L9,\"\"),\"\")","v":""},{"$f":"IF(C9<>\"\",IF(AND(C9=D9),1,0),\"\")","v":1},{"$f":"IF(C9<>\"\",IF(AND(C9=D9,D9=L9),1,0),\"\")","v":1},{"$f":"IF(AJ8<>\"\",IF(AJ8<>AK8,$L9,\"\"),\"\")","v":""},null,null,1,1,"",null,"","","",null,1,{"$f":"IF(AT8<>\"\",IF(AH8+AP8+AT8=3,1,0),\"\")","v":""},null,null,{"$f":"COUNTIF(C8:K8,0)","v":0},{"$f":"COUNTIF(C8:K8,1)","v":6},null,{"$f":"BA8*(BA8-1)","v":0},{"$f":"BB8*(BB8-1)","v":30},null,{"$f":"IF(C8=\"\",\"\",IF(C8=D8,2,0))","v":2},{"$f":"IF(E8=\"\",\"\",IF(C8=E8,2,0))","v":2},{"$f":"IF(D8=\"\",\"\",IF(D8=E8,2,0))","v":2},{"$f":"SUM(BG8:BI8)","v":6},{"$f":"IF(G8=\"\",\"\",IF(F8=G8,2,0))","v":2},{"$f":"IF(H8=\"\",\"\",IF(F8=H8,2,0))","v":2},{"$f":"IF(H8=\"\",\"\",IF(G8=H8,2,0))","v":2},{"$f":"SUM(BK8:BM8)","v":6},{"$f":"IF(J8=\"\",\"\",IF(I8=J8,2,0))","v":""},{"$f":"IF(K8=\"\",\"\",IF(I8=K8,2,0))","v":""},{"$f":"IF(K8=\"\",\"\",IF(J8=K8,2,0))","v":""},{"$f":"SUM(BO8:BQ8)","v":0},{"$f":"BD8+BE8","v":30},{"$f":"IF(C8=\"\",\"\",IF(C8=$L8,2,0))","v":2},{"$f":"IF(D8=\"\",\"\",IF(D8=$L8,2,0))","v":2},{"$f":"IF(E8=\"\",\"\",IF(E8=$L8,2,0))","v":2},{"$f":"IF(F8=\"\",\"\",IF(F8=$L8,2,0))","v":2},{"$f":"IF(G8=\"\",\"\",IF(G8=$L8,2,0))","v":2},{"$f":"IF(H8=\"\",\"\",IF(H8=$L8,2,0))","v":2},{"$f":"IF(I8=\"\",\"\",IF(I8=$L8,2,0))","v":""},{"$f":"IF(J8=\"\",\"\",IF(J8=$L8,2,0))","v":""},{"$f":"IF(K8=\"\",\"\",IF(K8=$L8,2,0))","v":""},null,null,null,null,2,"A",1,2,{"$f":"C9","v":1},{"$f":"L9","v":1}]
[null,{"$f":"B8+1","v":2},{"$f":"IF(Eingabe!C9=\"\",\"\",Eingabe!C9)","v":1},{"$f":"IF(Eingabe!D9=\"\",\"\",Eingabe!D9)","v":1},{"$f":"IF(Eingabe!E9=\"\",\"\",Eingabe!E9)","v":1},{"$f":"IF(Eingabe!F9=\"\",\"\",Eingabe!F9)","v":1},{"$f":"IF(Eingabe!G9=\"\",\"\",Eingabe!G9)","v":1},{"$f":"IF(Eingabe!H9=\"\",\"\",Eingabe!H9)","v":1},null,null,null,{"$f":"IF(Eingabe!I9=\"\",\"\",Eingabe!I9)","v":1},null,{"$f":"IF(C9<>\"\",IF(SUM(C9:K9)=COUNT(C9:K9),\"+\",IF(SUM(C9:K9)=0,\"-\",\"x\")),\"\")","v":"+"},null,null,"Specification Number",null,null,null,null,null,null,"Gage Name",null,null,null,null,null,null,null,null,1,1,"",1,1,"",null,null,1,1,"",null,"","","",null,1,"",null,null,0,6,null,{"$f":"BA9*(BA9-1)","v":0},30,null,2,2,2,{"$f":"SUM(BG9:BI9)","v":6},2,2,2,{"$f":"SUM(BK9:BM9)","v":6},"","","",{"$f":"SUM(BO9:BQ9)","v":0},{"$f":"BD9+BE9","v":30},2,2,2,2,2,2,"","","",null,null,null,null,3,"A",1,3,0,0]
[null,3,{"$f":"IF(Eingabe!C10=\"\",\"\",Eingabe!C10)","v":0},{"$f":"IF(Eingabe!D10=\"\",\"\",Eingabe!D10)","v":0},{"$f":"IF(Eingabe!E10=\"\",\"\",Eingabe!E10)","v":0},{"$f":"IF(Eingabe!F10=\"\",\"\",Eingabe!F10)","v":0},{"$f":"IF(Eingabe!G10=\"\",\"\",Eingabe!G10)","v":0},{"$f":"IF(Eingabe!H10=\"\",\"\",Eingabe!H10)","v":0},null,null,null,{"$f":"IF(Eingabe!I10=\"\",\"\",Eingabe!I10)","v":0},null,"-",null,null,"Characteristic Name",null,null,null,null,null,null,"Gage Number",null,null,null,null,null,null,null,null,1,1,"",1,1,"",null,null,1,1,"",null,"","","",null,1,"",null,null,6,0,null,30,0,null,2,2,2,6,2,2,2,6,"","","",0,30,2,2,2,2,2,2,"","","",null,null,null,null,4,"A",1,4,0,0]
[null,4,{"$f":"IF(Eingabe!C11=\"\",\"\",Eingabe!C11)","v":0},{"$f":"IF(Eingabe!D11=\"\",\"\",Eingabe!D11)","v":0},{"$f":"IF(Eingabe!E11=\"\",\"\",Eingabe!E11)","v":0},{"$f":"IF(Eingabe!F11=\"\",\"\",Eingabe!F11)","v":0},{"$f":"IF(Eingabe!G11=\"\",\"\",Eingabe!G11)","v":0},{"$f":"IF(Eingabe!H11=\"\",\"\",Eingabe!H11)","v":0},null,null,null,{"$f":"IF(Eingabe!I11=\"\",\"\",Eingabe!I11)","v":0},null,"-",null,null,"Characteristic Type",null,null,null,null,null,null,"Gage Type",null,null,null,null,null,null,null,null,1,1,"",1,1,"",null,null,1,1,"",null,"","","",null,1,"",null,null,6,0,null,30,0,null,2,2,2,6,2,2,2,6,"","","",0,30,2,2,2,2,2,2,"","","",null,null,null,null,5,"A",1,5,0,0]
[null,5,{"$f":"IF(Eingabe!C12=\"\",\"\",Eingabe!C12)","v":0},{"$f":"IF(Eingabe!D12=\"\",\"\",Eingabe!D12)","v":0},{"$f":"IF(Eingabe!E12=\"\",\"\",Eingabe!E12)","v":0},{"$f":"IF(Eingabe!F12=\"\",\"\",Eingabe!F12)","v":0},{"$f":"IF(Eingabe!G12=\"\",\"\",Eingabe!G12)","v":0},{"$f":"IF(Eingabe!H12=\"\",\"\",Eingabe!H12)","v":0},null,null,null,{"$f":"IF(Eingabe!I12=\"\",\"\",Eingabe!I12)","v":0},null,"-",null,null,"TPS Anzahl",null,null,null,null,null,null,null,null,null,null,null,null,null,null,null,0,0,"",1,1,"",null,null,0,0,"",null,"","","",null,0,"",null,null,6,0,null,30,0,null,2,2,2,6,2,2,2,6,"","","",0,30,2,2,2,2,2,2,"","","",null,null,null,null,6,"A",1,6,1,1]
[null,6,{"$f":"IF(Eingabe!C13=\"\",\"\",Eingabe!C13)","v":1},{"$f":"IF(Eingabe!D13=\"\",\"\",Eingabe!D13)","v":1},{"$f":"IF(Eingabe!E13=\"\",\"\",Eingabe!E13)","v":0},{"$f":"IF(Eingabe!F13=\"\",\"\",Eingabe!F13)","v":1},{"$f":"IF(Eingabe!G13=\"\",\"\",Eingabe!G13)","v":1},{"$f":"IF(Eingabe!H13=\"\",\"\",Eingabe!H13)","v":0},null,null,null,{"$f":"IF(Eingabe!I13=\"\",\"\",Eingabe!I13)","v":1},null,"x",null,null,null,null,null,null,null,null,null,"Score <",null,null,0.81,0.95,1,null,null,null,1,1,"",1,1,"",null,null,1,1,"",null,"","","",null,1,"",null,null,2,4,null,2,12,null,2,0,0,2,2,0,0,2,"","","",0,14,2,2,0,2,2,0,"","","",null,null,null,null,7,"A",1,7,1,1]
[null,7,{"$f":"IF(Eingabe!C14=\"\",\"\",Eingabe!C14)","v":1},{"$f":"IF(Eingabe!D14=\"\",\"\",Eingabe!D14)","v":1},{"$f":"IF(Eingabe!E14=\"\",\"\",Eingabe!E14)","v":1},{"$f":"IF(Eingabe!F14=\"\",\"\",Eingabe!F14)","v":1},{"$f":"IF(Eingabe!G14=\"\",\"\",Eingabe!G14)","v":1},{"$f":"IF(Eingabe!H14=\"\",\"\",Eingabe!H14)","v":1},null,null,null,{"$f":"IF(Eingabe!I14=\"\",\"\",Eingabe!I14)","v":1},null,"+",null,null,"Prüfer A",null,null,null,"Prüfer A",null,null,"Fleiss Kappa <",null,null,0.81,0.95,1,null,null,null,1,1,"",1,1,"",null,null,1,1,"",null,"","","",null,1,"",null,null,0,6,null,0,30,null,2,2,2,6,2,2,2,6,"","","",0,30,2,2,2,2,2,2,"","","",null,null,null,null,8,"A",1,8,1,1]
[null,8,{"$f":"IF(Eingabe!C15=\"\",\"\",Eingabe!C15)","v":1},{"$f":"IF(Eingabe!D15=\"\",\"\",Eingabe!D15)","v":1},{"$f":"IF(Eingabe!E15=\"\",\"\",Eingabe!E15)","v":1},{"$f":"IF(Eingabe!F15=\"\",\"\",Eingabe!F15)","v":1},{"$f":"IF(Eingabe!G15=\"\",\"\",Eingabe!G15)","v":1},{"$f":"IF(Eingabe!H15=\"\",\"\",Eingabe!H15)","v":1},null,null,null,{"$f":"IF(Eingabe!I15=\"\",\"\",Eingabe!I15)","v":1},null,"+",null,null,"Prüfer B",null,null,null,"Prüfer B",null,null,"Specifications",null,null,null,null,null,null,null,null,1,1,"",1,1,"",null,null,1,1,"",null,"","","",null,1,"",null,null,0,6,null,0,30,null,2,2,2,6,2,2,2,6,"","","",0,30,2,2,2,2,2,2,"","","",null,null,null,null,9,"A",1,9,0,0]
[null,9,{"$f":"IF(Eingabe!C16=\"\",\"\",Eingabe!C16)","v":0},{"$f":"IF(Eingabe!D16=\"\",\"\",Eingabe!D16)","v":0},{"$f":"IF(Eingabe!E16=\"\",\"\",Eingabe!E16)","v":0},{"$f":"IF(Eingabe!F16=\"\",\"\",Eingabe!F16)","v":0},{"$f":"IF(Eingabe!G16=\"\",\"\",Eingabe!G16)","v":0},{"$f":"IF(Eingabe!H16=\"\",\"\",Eingabe!H16)","v":0},null,null,null,{"$f":"IF(Eingabe!I16=\"\",\"\",Eingabe!I16)","v":0},null,"-",null,null,"Prüfer C",null,null,null,"Prüfer C",null,null," - LSL",null,null,null,null,null,null,null,null,1,1,"",1,1,"",null,null,1,1,"",null,"","","",null,1,"",null,null,6,0,null,30,0,null,2,2,2,6,2,2,2,6,"","","",0,30,2,2,2,2,2,2,"","","",null,null,null,null,10,"A",1,10,1,1]
[null,10,{"$f":"IF(Eingabe!C17=\"\",\"\",Eingabe!C17)","v":1},{"$f":"IF(Eingabe!D17=\"\",\"\",Eingabe!D17)","v":1},{"$f":"IF(Eingabe!E17=\"\",\"\",Eingabe!E17)","v":1},{"$f":"IF(Eingabe!F17=\"\",\"\",Eingabe!F17)","v":1},{"$f":"IF(Eingabe!G17=\"\",\"\",Eingabe!G17)","v":1},{"$f":"IF(Eingabe!H17=\"\",\"\",Eingabe!H17)","v":1},null,null,null,{"$f":"IF(Eingabe!I17=\"\",\"\",Eingabe!I17)","v":1},null,"+",null,null,"Prüfdatum",null,null,null,null,null,null," - USL",null,null,null,null,null,null,null,null,1,1,"",1,1,"",null,null,1,1,"",null,"","","",null,1,"",null,null,0,6,null,0,30,null,2,2,2,6,2,2,2,6,"","","",0,30,2,2,2,2,2,2,"","","",null,null,null,null,11,"A",1,11,1,1]
[null,11,{"$f":"IF(Eingabe!C18=\"\",\"\",Eingabe!C18)","v":1},{"$f":"IF(Eingabe!D18=\"\",\"\",Eingabe!D18)","v":1},{"$f":"IF(Eingabe!E18=\"\",\"\",Eingabe!E18)","v":1},{"$f":"IF(Eingabe!F18=\"\",\"\",Eingabe!F18)","v":1},{"$f":"IF(Eingabe!G18=\"\",\"\",Eingabe!G18)","v":1},{"$f":"IF(Eingabe!H18=\"\",\"\",Eingabe!H18)","v":1},null,null,null,{"$f":"IF(Eingabe!I18=\"\",\"\",Eingabe!I18)","v":1},null,"+",null,null,"Prüfung durch Id",null,null,null,null,null,null,"Resolution",null,null,null,null,null,null,null,null,1,1,"",1,1,"",null,null,1,1,"",null,"","","",null,1,"",null,null,0,6,null,0,30,null,2,2,2,6,2,2,2,6,"","","",0,30,2,2,2,2,2,2,"","","",null,null,null,null,12,"A",1,12,0,0]
[null,12,{"$f":"IF(Eingabe!C19=\"\",\"\",Eingabe!C19)","v":0},{"$f":"IF(Eingabe!D19=\"\",\"\",Eingabe!D19)","v":0},{"$f":"IF(Eingabe!E19=\"\",\"\",Eingabe!E19)","v":0},{"$f":"IF(Eingabe!F19=\"\",\"\",Eingabe!F19)","v":0},{"$f":"IF(Eingabe!G19=\"\",\"\",Eingabe!G19)","v":0},{"$f":"IF(Eingabe!H19=\"\",\"\",Eingabe!H19)","v":0},null,null,null,{"$f":"IF(Eingabe!I19=\"\",\"\",Eingabe!I19)","v":0},null,"-",null,null,"Prüfung durch Name",null,null,null,null,null,null,null,null,null,null,null,null,null,null,null,1,1,"",1,1,"",null,null,1,1,"",null,"","","",null,1,"",null,null,6,0,null,30,0,null,2,2,2,6,2,2,2,6,"","","",0,30,2,2,2,2,2,2,"","","",null,null,null,null,13,"A",1,13,1,1]
[null,13,{"$f":"IF(Eingabe!C20=\"\",\"\",Eingabe!C20)","v":1},{"$f":"IF(Eingabe!D20=\"\",\"\",Eingabe!D20)","v":1},{"$f":"IF(Eingabe!E20=\"\",\"\",Eingabe!E20)","v":1},{"$f":"IF(Eingabe!F20=\"\",\"\",Eingabe!F20)","v":1},{"$f":"IF(Eingabe!G20=\"\",\"\",Eingabe!G20)","v":1},{"$f":"IF(Eingabe!H20=\"\",\"\",Eingabe!H20)","v":1},null,null,null,{"$f":"IF(Eingabe!I20=\"\",\"\",Eingabe!I20)","v":1},null,"+",null,null,null,null,null,null,null,null,null,null,null,null,null,null,null,null,null,null,0,0,"",1,1,"",null,null,1,1,"",null,"","","",null,0,"",null,null,0,6,null,0,30,null,2,2,2,6,2,2,2,6,"","","",0,30,2,2,2,2,2,2,"","","",null,null,null,null,14,"A",1,14,1,1]
[null,14,{"$f":"IF(Eingabe!C21=\"\",\"\",Eingabe!C21)","v":1},{"$f":"IF(Eingabe!D21=\"\",\"\",Eingabe!D21)","v":1},{"$f":"IF(Eingabe!E21=\"\",\"\",Eingabe!E21)","v":0},{"$f":"IF(Eingabe!F21=\"\",\"\",Eingabe!F21)","v":1},{"$f":"IF(Eingabe!G21=\"\",\"\",Eingabe!G21)","v":1},{"$f":"IF(Eingabe!H21=\"\",\"\",Eingabe!H21)","v":1},null,null,null,{"$f":"IF(Eingabe!I21=\"\",\"\",Eingabe!I21)","v":1},null,"x",null,null,"Anzahl Durchgänge",null,null,null,{"$f":"IF(C8<>\"\",COUNT(C8:E8),\"\")","v":3},null,null,null,null,null,null,null,null,null,null,null,1,1,"",1,1,"",null,null,1,1,"",null,"","","",null,1,"",null,null,1,5,null,0,20,null,2,0,0,2,2,2,2,6,"","","",0,20,2,2,0,2,2,2,"","","",null,null,null,null,15,"A",1,15,1,1]
[null,15,{"$f":"IF(Eingabe!C22=\"\",\"\",Eingabe!C22)","v":1},{"$f":"IF(Eingabe!D22=\"\",\"\",Eingabe!D22)","v":1},{"$f":"IF(Eingabe!E22=\"\",\"\",Eingabe!E22)","v":1},{"$f":"IF(Eingabe!F22=\"\",\"\",Eingabe!F22)","v":1},{"$f":"IF(Eingabe!G22=\"\",\"\",Eingabe!G22)","v":1},{"$f":"IF(Eingabe!H22=\"\",\"\",Eingabe!H22)","v":1},null,null,null,{"$f":"IF(Eingabe!I22=\"\",\"\",Eingabe!I22)","v":1},null,"+",null,null,"Anzahl Teile",null,null,null,{"$f":"IF(C8<>\"\",COUNT(C8:C57),\"\")","v":30},null,null,null,null,null,null,null,null,null,null,null,1,1,"",1,1,"",null,null,1,1,"",null,"","","",null,1,"",null,null,0,6,null,0,30,null,2,2,2,6,2,2,2,6,"","","",0,30,2,2,2,2,2,2,"","","",null,null,null,null,16,"A",1,16,1,1]
[null,16,{"$f":"IF(Eingabe!C23=\"\",\"\",Eingabe!C23)","v":1},{"$f":"IF(Eingabe!D23=\"\",\"\",Eingabe!D23)","v":1},{"$f":"IF(Eingabe!E23=\"\",\"\",Eingabe!E23)","v":1},{"$f":"IF(Eingabe!F23=\"\",\"\",Eingabe!F23)","v":1},{"$f":"IF(Eingabe!G23=\"\",\"\",Eingabe!G23)","v":1},{"$f":"IF(Eingabe!H23=\"\",\"\",Eingabe!H23)","v":1},null,null,null,{"$f":"IF(Eingabe!I23=\"\",\"\",Eingabe!I23)","v":1},null,"+",null,null,"Anzahl of Prüfer",null,null,null,{"$f":"IF(C8<>\"\",COUNT(C8,F8,I8),\"\")","v":2},null,null,null,null,null,null,null,null,null,null,null,1,1,"",1,1,"",null,null,1,1,"",null,"","","",null,1,"",null,null,0,6,null,0,30,null,2,2,2,6,2,2,2,6,"","","",0,30,2,2,2,2,2,2,"","","",null,null,null,null,17,"A",1,17,1,1]
[null,17,{"$f":"IF(Eingabe!C24=\"\",\"\",Eingabe!C24)","v":1},{"$f":"IF(Eingabe!D24=\"\",\"\",Eingabe!D24)","v":1},{"$f":"IF(Eingabe!E24=\"\",\"\",Eingabe!E24)","v":1},{"$f":"IF(Eingabe!F24=\"\",\"\",Eingabe!F24)","v":1},{"$f":"IF(Eingabe!G24=\"\",\"\",Eingabe!G24)","v":1},{"$f":"IF(Eingabe!H24=\"\",\"\",Eingabe!H24)","v":1},null,null,null,{"$f":"IF(Eingabe!I24=\"\",\"\",Eingabe!I24)","v":1},null,"+",null,null,null,null,null,null,null,null,null,null,null,null,null,null,null,null,null,null,1,1,"",1,1,"",null,null,1,1,"",null,"","","",null,1,"",null,null,0,6,null,0,30,null,2,2,2,6,2,2,2,6,"","","",0,30,2,2,2,2,2,2,"","","",null,null,null,null,18,"A",1,18,1,1]
[null,18,{"$f":"IF(Eingabe!C25=\"\",\"\",Eingabe!C25)","v":1},{"$f":"IF(Eingabe!D25=\"\",\"\",Eingabe!D25)","v":1},{"$f":"IF(Eingabe!E25=\"\",\"\",Eingabe!E25)","v":1},{"$f":"IF(Eingabe!F25=\"\",\"\",Eingabe!F25)","v":1},{"$f":"IF(Eingabe!G25=\"\",\"\",Eingabe!G25)","v":1},{"$f":"IF(Eingabe!H25=\"\",\"\",Eingabe!H25)","v":1},null,null,null,{"$f":"IF(Eingabe!I25=\"\",\"\",Eingabe!I25)","v":1},null,"+",null,"Prüfer",null,null,null,null,null,null,null,null,null,null,null,null,null,null,null,null,1,1,"",1,1,"",null,null,1,1,"",null,"","","",null,1,"",null,null,0,6,null,0,30,null,2,2,2,6,2,2,2,6,"","","",0,30,2,2,2,2,2,2,"","","",null,null,null,null,19,"A",1,19,1,1]
[null,19,{"$f":"IF(Eingabe!C26=\"\",\"\",Eingabe!C26)","v":1},{"$f":"IF(Eingabe!D26=\"\",\"\",Eingabe!D26)","v":1},{"$f":"IF(Eingabe!E26=\"\",\"\",Eingabe!E26)","v":1},{"$f":"IF(Eingabe!F26=\"\",\"\",Eingabe!F26)","v":1},{"$f":"IF(Eingabe!G26=\"\",\"\",Eingabe!G26)","v":1},{"$f":"IF(Eingabe!H26=\"\",\"\",Eingabe!H26)","v":1},null,null,null,{"$f":"IF(Eingabe!I26=\"\",\"\",Eingabe!I26)","v":1},null,"+",null,null,null,null,"Innerhalb Prüfer",null,null,null,null,null,"Zwischen",null,null,null,null,null,null,null,1,1,"",1,1,"",null,null,1,1,"",null,"","","",null,1,"",null,null,0,6,null,0,30,null,2,2,2,6,2,2,2,6,"","","",0,30,2,2,2,2,2,2,"","","",null,null,null,null,20,"A",1,20,1,1]
[null,20,{"$f":"IF(Eingabe!C27=\"\",\"\",Eingabe!C27)","v":1},{"$f":"IF(Eingabe!D27=\"\",\"\",Eingabe!D27)","v":1},{"$f":"IF(Eingabe!E27=\"\",\"\",Eingabe!E27)","v":1},{"$f":"IF(Eingabe!F27=\"\",\"\",Eingabe!F27)","v":1},{"$f":"IF(Eingabe!G27=\"\",\"\",Eingabe!G27)","v":1},{"$f":"IF(Eingabe!H27=\"\",\"\",Eingabe!H27)","v":1},null,null,null,{"$f":"IF(Eingabe!I27=\"\",\"\",Eingabe!I27)","v":1},null,"+",null,null,null,null,{"$f":"U14","v":"Prüfer A"},null,{"$f":"U15","v":"Prüfer B"},null,{"$f":"U16","v":"Prüfer C"},null,"Prüfer",null,null,null,null,null,null,null,0,0,"",1,1,"",null,null,0,0,"",null,"","","",null,0,"",null,null,0,6,null,0,30,null,2,2,2,6,2,2,2,6,"","","",0,30,2,2,2,2,2,2,"","","",null,null,null,null,21,"A",1,21,1,1]
[null,21,{"$f":"IF(Eingabe!C28=\"\",\"\",Eingabe!C28)","v":1},{"$f":"IF(Eingabe!D28=\"\",\"\",Eingabe!D28)","v":1},{"$f":"IF(Eingabe!E28=\"\",\"\",Eingabe!E28)","v":0},{"$f":"IF(Eingabe!F28=\"\",\"\",Eingabe!F28)","v":1},{"$f":"IF(Eingabe!G28=\"\",\"\",Eingabe!G28)","v":0},{"$f":"IF(Eingabe!H28=\"\",\"\",Eingabe!H28)","v":1},null,null,null,{"$f":"IF(Eingabe!I28=\"\",\"\",Eingabe!I28)","v":1},null,"x",null,"Geprüft gesamt",null,null,{"$f":"IF(C8<>\"\",COUNT(C8:C57),\"\")","v":30},null,{"$f":"IF(F8<>\"\",COUNT(F8:F57),\"\")","v":30},null,{"$f":"IF(I8<>\"\",COUNT(I8:I57),\"\")","v":""},null,{"$f":"S28","v":30},null,null,null,null,null,null,null,0,0,"",1,1,"",null,null,0,0,"",null,"","","",null,0,"",null,null,2,4,null,2,12,null,2,0,0,2,0,2,0,2,"","","",0,14,2,2,0,2,0,2,"","","",null,null,null,null,22,"A",1,22,0,0]
[null,22,{"$f":"IF(Eingabe!C29=\"\",\"\",Eingabe!C29)","v":0},{"$f":"IF(Eingabe!D29=\"\",\"\",Eingabe!D29)","v":0},{"$f":"IF(Eingabe!E29=\"\",\"\",Eingabe!E29)","v":1},{"$f":"IF(Eingabe!F29=\"\",\"\",Eingabe!F29)","v":0},{"$f":"IF(Eingabe!G29=\"\",\"\",Eingabe!G29)","v":1},{"$f":"IF(Eingabe!H29=\"\",\"\",Eingabe!H29)","v":0},null,null,null,{"$f":"IF(Eingabe!I29=\"\",\"\",Eingabe!I29)","v":0},null,"x",null,"# Matched",null,null,{"$f":"IF(U21=3,IF(C8<>\"\",SUM(AG7:AG56),\"\"),IF(C8<>\"\",SUM(AJ7:AJ56),\"\"))","v":25},null,{"$f":"IF(F8<>\"\",SUM(AO7:AO56),\"\")","v":26},null,{"$f":"IF(I8<>\"\",SUM(AS7:AS56),\"\")","v":""},null,{"$f":"IF(S28<>\"\",SUM(AW7:AW56),\"\")","v":24},null,null,null,null,null,null,null,1,1,"",1,1,"",null,null,1,1,"",null,"","","",null,1,"",null,null,4,2,null,12,2,null,2,0,0,2,0,2,0,2,"","","",0,14,2,2,0,2,0,2,"","","",null,null,null,null,23,"A",1,23,1,1]
[null,23,{"$f":"IF(Eingabe!C30=\"\",\"\",Eingabe!C30)","v":1},{"$f":"IF(Eingabe!D30=\"\",\"\",Eingabe!D30)","v":1},{"$f":"IF(Eingabe!E30=\"\",\"\",Eingabe!E30)","v":1},{"$f":"IF(Eingabe!F30=\"\",\"\",Eingabe!F30)","v":1},{"$f":"IF(Eingabe!G30=\"\",\"\",Eingabe!G30)","v":1},{"$f":"IF(Eingabe!H30=\"\",\"\",Eingabe!H30)","v":1},null,null,null,{"$f":"IF(Eingabe!I30=\"\",\"\",Eingabe!I30)","v":1},null,"+",null,"95% upper CI",null,null,{"$f":"IF(S29<>\"\",IF(S28=S29,1,(2*(S29+1)*FINV(0.025,2*(S29+1),2*(S28-S29)))/(2*(S28-S29)+2*(S29+1)*FINV(0.025,2*(S29+1),2*(S28-S29)))),\"\")","v":0.94357830353192851},null,{"$f":"IF(U29<>\"\",IF(U28=U29,1,(2*(U29+1)*FINV(0.025,2*(U29+1),2*(U28-U29)))/(2*(U28-U29)+2*(U29+1)*FINV(0.025,2*(U29+1),2*(U28-U29)))),\"\")","v":0.96244650366163664},null,{"$f":"IF(W29<>\"\",IF(W28=W29,1,(2*(W29+1)*FINV(0.025,2*(W29+1),2*(W28-W29)))/(2*(W28-W29)+2*(W29+1)*FINV(0.025,2*(W29+1),2*(W28-W29)))),\"\")","v":""},null,{"$f":"IF(Y29<>\"\",IF(Y28=Y29,1,(2*(Y29+1)*FINV(0.025,2*(Y29+1),2*(Y28-Y29)))/(2*(Y28-Y29)+2*(Y29+1)*FINV(0.025,2*(Y29+1),2*(Y28-Y29)))),\"\")","v":0.92286448799893439},null,null,null,null,null,null,null,1,1,"",1,1,"",null,null,1,1,"",null,"","","",null,1,"",null,null,0,6,null,0,30,null,2,2,2,6,2,2,2,6,"","","",0,30,2,2,2,2,2,2,"","","",null,null,null,null,24,"A",1,24,1,1]
[null,24,{"$f":"IF(Eingabe!C31=\"\",\"\",Eingabe!C31)","v":1},{"$f":"IF(Eingabe!D31=\"\",\"\",Eingabe!D31)","v":1},{"$f":"IF(Eingabe!E31=\"\",\"\",Eingabe!E31)","v":1},{"$f":"IF(Eingabe!F31=\"\",\"\",Eingabe!F31)","v":1},{"$f":"IF(Eingabe!G31=\"\",\"\",Eingabe!G31)","v":1},{"$f":"IF(Eingabe!H31=\"\",\"\",Eingabe!H31)","v":1},null,null,null,{"$f":"IF(Eingabe!I31=\"\",\"\",Eingabe!I31)","v":1},null,"+",null,"Ergebnis",null,null,{"$f":"IF(S28<>\"\",(S29/S28)/AJ3,\"\")","v":0.83333333333333337},null,{"$f":"IF(U28<>\"\",(U29/U28)/AJ3,\"\")","v":0.8666666666666667},null,{"$f":"IF(W28<>\"\",(W29/W28)/AJ3,\"\")","v":""},null,{"$f":"IF(Y28<>\"\",Y29/Y28,\"\")","v":0.8},null,null,null,null,null,null,null,1,1,"",1,1,"",null,null,1,1,"",null,"","","",null,1,"",null,null,0,6,null,0,30,null,2,2,2,6,2,2,2,6,"","","",0,30,2,2,2,2,2,2,"","","",null,null,null,null,25,"A",1,25,0,0]
[null,25,{"$f":"IF(Eingabe!C32=\"\",\"\",Eingabe!C32)","v":0},{"$f":"IF(Eingabe!D32=\"\",\"\",Eingabe!D32)","v":0},{"$f":"IF(Eingabe!E32=\"\",\"\",Eingabe!E32)","v":0},{"$f":"IF(Eingabe!F32=\"\",\"\",Eingabe!F32)","v":0},{"$f":"IF(Eingabe!G32=\"\",\"\",Eingabe!G32)","v":0},{"$f":"IF(Eingabe!H32=\"\",\"\",Eingabe!H32)","v":0},null,null,null,{"$f":"IF(Eingabe!I32=\"\",\"\",Eingabe!I32)","v":0},null,"-",null,"95% lower CI",null,null,{"$f":"IF(S29<>\"\",IF(S29=0,0,(2*S29*FINV(0.975,2*S29,2*(S28-S29+1)))/(2*(S28-S29+1)+2*S29*FINV(0.975,2*S29,2*(S28-S29+1)))),\"\")","v":0.65278830116585618},null,{"$f":"IF(U29<>\"\",IF(S29=0,0,(2*U29*FINV(0.975,2*U29,2*(U28-U29+1)))/(2*(U28-U29+1)+2*U29*FINV(0.975,2*U29,2*(U28-U29+1)))),\"\")","v":0.69278164972387335},null,{"$f":"IF(W29<>\"\",IF(S29=0,0,(2*W29*FINV(0.975,2*W29,2*(W28-W29+1)))/(2*(W28-W29+1)+2*W29*FINV(0.975,2*W29,2*(W28-W29+1)))),\"\")","v":""},null,{"$f":"IF(Y29<>\"\",IF(S29=0,0,(2*Y29*FINV(0.975,2*Y29,2*(Y28-Y29+1)))/(2*(Y28-Y29+1)+2*Y29*FINV(0.975,2*Y29,2*(Y28-Y29+1)))),\"\")","v":0.61433348900339269},null,null,null,null,null,null,null,0,0,"",0,0,"",null,null,1,1,"",null,"","","",null,0,"",null,null,6,0,null,30,0,null,2,2,2,6,2,2,2,6,"","","",0,30,2,2,2,2,2,2,"","","",null,null,null,null,26,"A",1,26,0,0]
[null,26,{"$f":"IF(Eingabe!C33=\"\",\"\",Eingabe!C33)","v":0},{"$f":"IF(Eingabe!D33=\"\",\"\",Eingabe!D33)","v":1},{"$f":"IF(Eingabe!E33=\"\",\"\",Eingabe!E33)","v":0},{"$f":"IF(Eingabe!F33=\"\",\"\",Eingabe!F33)","v":0},{"$f":"IF(Eingabe!G33=\"\",\"\",Eingabe!G33)","v":0},{"$f":"IF(Eingabe!H33=\"\",\"\",Eingabe!H33)","v":0},null,null,null,{"$f":"IF(Eingabe!I33=\"\",\"\",Eingabe!I33)","v":0},null,"x",null,"Fleiss Kappa",null,null,{"$f":"BJ73/AJ3","v":0.74078341013824878},null,{"$f":"BN73/AJ3","v":0.78835978835978837},null,{"$f":"BR73/AJ3","v":{"$error":"#DIV/0!"}},null,{"$f":"BS73","v":0.79578181818181815},null,null,null,null,null,null,null,1,1,"",1,1,"",null,null,1,1,"",null,"","","",null,1,"",null,null,5,1,null,20,0,null,0,2,0,2,2,2,2,6,"","","",0,20,2,0,2,2,2,2,"","","",null,null,null,null,27,"A",1,27,1,1]
[null,27,{"$f":"IF(Eingabe!C34=\"\",\"\",Eingabe!C34)","v":1},{"$f":"IF(Eingabe!D34=\"\",\"\",Eingabe!D34)","v":1},{"$f":"IF(Eingabe!E34=\"\",\"\",Eingabe!E34)","v":1},{"$f":"IF(Eingabe!F34=\"\",\"\",Eingabe!F34)","v":1},{"$f":"IF(Eingabe!G34=\"\",\"\",Eingabe!G34)","v":1},{"$f":"IF(Eingabe!H34=\"\",\"\",Eingabe!H34)","v":1},null,null,null,{"$f":"IF(Eingabe!I34=\"\",\"\",Eingabe!I34)","v":1},null,"+",null,null,null,null,null,null,null,null,null,null,null,null,null,null,null,null,null,null,1,1,"",1,1,"",null,null,1,1,"",null,"","","",null,1,"",null,null,0,6,null,0,30,null,2,2,2,6,2,2,2,6,"","","",0,30,2,2,2,2,2,2,"","","",null,null,null,null,28,"A",1,28,1,1]
[null,28,{"$f":"IF(Eingabe!C35=\"\",\"\",Eingabe!C35)","v":1},{"$f":"IF(Eingabe!D35=\"\",\"\",Eingabe!D35)","v":1},{"$f":"IF(Eingabe!E35=\"\",\"\",Eingabe!E35)","v":1},{"$f":"IF(Eingabe!F35=\"\",\"\",Eingabe!F35)","v":1},{"$f":"IF(Eingabe!G35=\"\",\"\",Eingabe!G35)","v":1},{"$f":"IF(Eingabe!H35=\"\",\"\",Eingabe!H35)","v":1},null,null,null,{"$f":"IF(Eingabe!I35=\"\",\"\",Eingabe!I35)","v":1},null,"+",null,"Prüfer vs. Standard",null,null,null,null,null,null,null,null,null,null,null,null,null,null,null,null,1,1,"",1,1,"",null,null,1,1,"",null,"","","",null,1,"",null,null,0,6,null,0,30,null,2,2,2,6,2,2,2,6,"","","",0,30,2,2,2,2,2,2,"","","",null,null,null,null,29,"A",1,29,1,1]
[null,29,{"$f":"IF(Eingabe!C36=\"\",\"\",Eingabe!C36)","v":1},{"$f":"IF(Eingabe!D36=\"\",\"\",Eingabe!D36)","v":1},{"$f":"IF(Eingabe!E36=\"\",\"\",Eingabe!E36)","v":1},{"$f":"IF(Eingabe!F36=\"\",\"\",Eingabe!F36)","v":1},{"$f":"IF(Eingabe!G36=\"\",\"\",Eingabe!G36)","v":1},{"$f":"IF(Eingabe!H36=\"\",\"\",Eingabe!H36)","v":1},null,null,null,{"$f":"IF(Eingabe!I36=\"\",\"\",Eingabe!I36)","v":1},null,"+",null,"Source",null,null,"Einzelne Prüfer vs. Standard",null,null,null,null,null,"Alle Prüfer vs. Standard ",null,null,null,null,null,null,null,1,1,"",1,1,"",null,null,0,0,"",null,"","","",null,0,"",null,null,0,6,null,0,30,null,2,2,2,6,2,2,2,6,"","","",0,30,2,2,2,2,2,2,"","","",null,null,null,null,30,"A",1,30,0,0]
[null,30,{"$f":"IF(Eingabe!C37=\"\",\"\",Eingabe!C37)","v":0},{"$f":"IF(Eingabe!D37=\"\",\"\",Eingabe!D37)","v":0},{"$f":"IF(Eingabe!E37=\"\",\"\",Eingabe!E37)","v":0},{"$f":"IF(Eingabe!F37=\"\",\"\",Eingabe!F37)","v":0},{"$f":"IF(Eingabe!G37=\"\",\"\",Eingabe!G37)","v":0},{"$f":"IF(Eingabe!H37=\"\",\"\",Eingabe!H37)","v":1},null,null,null,{"$f":"IF(Eingabe!I37=\"\",\"\",Eingabe!I37)","v":0},null,"x",null,null,null,null,{"$f":"S27","v":"Prüfer A"},null,{"$f":"U27","v":"Prüfer B"},null,{"$f":"W27","v":"Prüfer C"},null,null,null,null,null,null,null,null,null,"","","","","","",null,null,"","","",null,"","","",null,"","",null,null,5,1,null,20,0,null,2,2,2,6,2,0,0,2,"","","",0,20,2,2,2,2,2,0,"","","",null,null,null,null,31,"A",1,31,"",""]
[null,31,{"$f":"IF(Eingabe!C38=\"\",\"\",Eingabe!C38)","v":""},{"$f":"IF(Eingabe!D38=\"\",\"\",Eingabe!D38)","v":""},{"$f":"IF(Eingabe!E38=\"\",\"\",Eingabe!E38)","v":""},{"$f":"IF(Eingabe!F38=\"\",\"\",Eingabe!F38)","v":""},{"$f":"IF(Eingabe!G38=\"\",\"\",Eingabe!G38)","v":""},{"$f":"IF(Eingabe!H38=\"\",\"\",Eingabe!H38)","v":""},null,null,null,{"$f":"IF(Eingabe!I38=\"\",\"\",Eingabe!I38)","v":""},null,{"$f":"IF(C38<>\"\",IF(SUM(C38:K38)=9,\"+\",IF(SUM(C38:K38)=0,\"-\",\"x\")),\"\")","v":""},null,"Geprüft gesamt",null,null,{"$f":"S28","v":30},null,{"$f":"U28","v":30},null,{"$f":"W28","v":""},null,{"$f":"S38","v":30},null,null,null,null,null,null,null,"","","","","","",null,null,"","","",null,"","","",null,"","",null,null,0,0,null,0,0,null,"","","",0,"","","",0,"","","",0,0,"","","","","","","","","",null,null,null,null,32,"A",1,32,"",""]
[null,32,{"$f":"IF(Eingabe!C39=\"\",\"\",Eingabe!C39)","v":""},{"$f":"IF(Eingabe!D39=\"\",\"\",Eingabe!D39)","v":""},{"$f":"IF(Eingabe!E39=\"\",\"\",Eingabe!E39)","v":""},{"$f":"IF(Eingabe!F39=\"\",\"\",Eingabe!F39)","v":""},{"$f":"IF(Eingabe!G39=\"\",\"\",Eingabe!G39)","v":""},{"$f":"IF(Eingabe!H39=\"\",\"\",Eingabe!H39)","v":""},null,null,null,{"$f":"IF(Eingabe!I39=\"\",\"\",Eingabe!I39)","v":""},null,"",null,"# Matched",null,null,{"$f":"IF(S38<>\"\",SUM(AH7:AH56),\"\")","v":25},null,{"$f":"IF(U38<>\"\",SUM(AP7:AP56),\"\")","v":26},null,{"$f":"IF(W38<>\"\",SUM(AT7:AT56),\"\")","v":""},null,{"$f":"IF(S38<>\"\",SUM(AX7:AX56),\"\")","v":0},null,null,null,null,null,null,null,"","","","","","",null,null,{"$f":"IF(F40<>\"\",IF(AND(F40=G40,F40=H40),1,0),\"\")","v":""},{"$f":"IF(F40<>\"\",IF(AND(F40=G40,G40=H40,H40=L40),1,0),\"\")","v":""},{"$f":"IF(AO39<>\"\",IF(AO39<>AP39,L40,\"\"),\"\")","v":""},null,{"$f":"IF(I40<>\"\",IF(AND(I40=J40,J40=K40),1,0),\"\")","v":""},{"$f":"IF(I40<>\"\",IF(AND(I40=J40,J40=K40,K40=L40),1,0),\"\")","v":""},{"$f":"IF(AS39<>\"\",IF(AS39<>AT39,L40,\"\"),\"\")","v":""},null,{"$f":"IF(C40<>\"\",IF(OR(SUM(C40:K40)=COUNT(C40:K40),SUM(C40:K40)=0),1,0),\"\")","v":""},"",null,null,0,0,null,0,0,null,"","","",0,"","","",0,"","","",0,0,"","","","","","","","","",null,null,null,null,33,"A",1,33,"",""]
[null,33,{"$f":"IF(Eingabe!C40=\"\",\"\",Eingabe!C40)","v":""},{"$f":"IF(Eingabe!D40=\"\",\"\",Eingabe!D40)","v":""},{"$f":"IF(Eingabe!E40=\"\",\"\",Eingabe!E40)","v":""},{"$f":"IF(Eingabe!F40=\"\",\"\",Eingabe!F40)","v":""},{"$f":"IF(Eingabe!G40=\"\",\"\",Eingabe!G40)","v":""},{"$f":"IF(Eingabe!H40=\"\",\"\",Eingabe!H40)","v":""},null,null,null,{"$f":"IF(Eingabe!I40=\"\",\"\",Eingabe!I40)","v":""},null,"",null,"False Positive (*5)",null,null,{"$f":"IF(S38<>\"\",COUNTIF(AI7:AI56,\"=1\"),\"\")","v":0},null,{"$f":"IF(U38<>\"\",COUNTIF(AQ7:AQ56,\"=1\"),\"\")","v":0},null,{"$f":"IF(W38<>\"\",COUNTIF(AU7:AU56,\"=1\"),\"\")","v":""},null,null,null,null,null,null,null,null,null,"","","","","","",null,null,"","","",null,"","","",null,"",{"$f":"IF(AT40<>\"\",IF(AH40+AP40+AT40=3,1,0),\"\")","v":""},null,null,{"$f":"COUNTIF(C40:K40,0)","v":0},{"$f":"COUNTIF(C40:K40,1)","v":0},null,0,0,null,{"$f":"IF(C40=\"\",\"\",IF(C40=D40,2,0))","v":""},{"$f":"IF(E40=\"\",\"\",IF(C40=E40,2,0))","v":""},{"$f":"IF(D40=\"\",\"\",IF(D40=E40,2,0))","v":""},0,{"$f":"IF(G40=\"\",\"\",IF(F40=G40,2,0))","v":""},{"$f":"IF(H40=\"\",\"\",IF(F40=H40,2,0))","v":""},{"$f":"IF(H40=\"\",\"\",IF(G40=H40,2,0))","v":""},0,{"$f":"IF(J40=\"\",\"\",IF(I40=J40,2,0))","v":""},{"$f":"IF(K40=\"\",\"\",IF(I40=K40,2,0))","v":""},{"$f":"IF(K40=\"\",\"\",IF(J40=K40,2,0))","v":""},0,0,{"$f":"IF(C40=\"\",\"\",IF(C40=$L40,2,0))","v":""},{"$f":"IF(D40=\"\",\"\",IF(D40=$L40,2,0))","v":""},{"$f":"IF(E40=\"\",\"\",IF(E40=$L40,2,0))","v":""},{"$f":"IF(F40=\"\",\"\",IF(F40=$L40,2,0))","v":""},{"$f":"IF(G40=\"\",\"\",IF(G40=$L40,2,0))","v":""},{"$f":"IF(H40=\"\",\"\",IF(H40=$L40,2,0))","v":""},{"$f":"IF(I40=\"\",\"\",IF(I40=$L40,2,0))","v":""},{"$f":"IF(J40=\"\",\"\",IF(J40=$L40,2,0))","v":""},{"$f":"IF(K40=\"\",\"\",IF(K40=$L40,2,0))","v":""},null,null,null,null,34,"A",1,34,"",""]
[null,34,{"$f":"IF(Eingabe!C41=\"\",\"\",Eingabe!C41)","v":""},{"$f":"IF(Eingabe!D41=\"\",\"\",Eingabe!D41)","v":""},{"$f":"IF(Eingabe!E41=\"\",\"\",Eingabe!E41)","v":""},{"$f":"IF(Eingabe!F41=\"\",\"\",Eingabe!F41)","v":""},{"$f":"IF(Eingabe!G41=\"\",\"\",Eingabe!G41)","v":""},{"$f":"IF(Eingabe!H41=\"\",\"\",Eingabe!H41)","v":""},null,null,null,{"$f":"IF(Eingabe!I41=\"\",\"\",Eingabe!I41)","v":""},null,"",null,"False Negative (*6)",null,null,{"$f":"IF(S38<>\"\",COUNTIF(AI7:AI56,\"=0\"),\"\")","v":0},null,{"$f":"IF(U38<>\"\",COUNTIF(AQ7:AQ56,\"=0\"),\"\")","v":0},null,{"$f":"IF(W38<>\"\",COUNTIF(AU7:AU56,\"=0\"),\"\")","v":""},null,null,null,null,null,null,null,null,null,"","","","","","",null,null,"","","",null,"","","",null,"","",null,null,0,0,null,0,0,null,"","","",0,"","","",0,"","","",0,0,"","","","","","","","","",null,null,null,null,35,"A",1,35,"",""]
[null,35,{"$f":"IF(Eingabe!C42=\"\",\"\",Eingabe!C42)","v":""},{"$f":"IF(Eingabe!D42=\"\",\"\",Eingabe!D42)","v":""},{"$f":"IF(Eingabe!E42=\"\",\"\",Eingabe!E42)","v":""},{"$f":"IF(Eingabe!F42=\"\",\"\",Eingabe!F42)","v":""},{"$f":"IF(Eingabe!G42=\"\",\"\",Eingabe!G42)","v":""},{"$f":"IF(Eingabe!H42=\"\",\"\",Eingabe!H42)","v":""},null,null,null,{"$f":"IF(Eingabe!I42=\"\",\"\",Eingabe!I42)","v":""},null,"",null,"Mixed",null,null,{"$f":"IF(S38<>\"\",S38-S39-S40-S41,\"\")","v":5},null,{"$f":"IF(U38<>\"\",U38-U39-U40-U41,\"\")","v":4},null,{"$f":"IF(W38<>\"\",W38-W39-W40-W41,\"\")","v":""},null,null,null,null,null,null,null,null,null,"","","","","","",null,null,"","","",null,"","","",null,"","",null,null,0,0,null,0,0,null,"","","",0,"","","",0,"","","",0,0,"","","","","","","","","",null,null,null,null,36,"A",1,36,"",""]
[null,36,{"$f":"IF(Eingabe!C43=\"\",\"\",Eingabe!C43)","v":""},{"$f":"IF(Eingabe!D43=\"\",\"\",Eingabe!D43)","v":""},{"$f":"IF(Eingabe!E43=\"\",\"\",Eingabe!E43)","v":""},{"$f":"IF(Eingabe!F43=\"\",\"\",Eingabe!F43)","v":""},{"$f":"IF(Eingabe!G43=\"\",\"\",Eingabe!G43)","v":""},{"$f":"IF(Eingabe!H43=\"\",\"\",Eingabe!H43)","v":""},null,null,null,{"$f":"IF(Eingabe!I43=\"\",\"\",Eingabe!I43)","v":""},null,"",null,"95% upper CI (*7)",null,null,{"$f":"IF(S39<>\"\",IF(S38=S39,1,(2*(S39+1)*FINV(0.025,2*(S39+1),2*(S38-S39)))/(2*(S38-S39)+2*(S39+1)*FINV(0.025,2*(S39+1),2*(S38-S39)))),\"\")","v":0.94357830353192851},null,{"$f":"IF(U39<>\"\",IF(U38=U39,1,(2*(U39+1)*FINV(0.025,2*(U39+1),2*(U38-U39)))/(2*(U38-U39)+2*(U39+1)*FINV(0.025,2*(U39+1),2*(U38-U39)))),\"\")","v":0.96244650366163664},null,{"$f":"IF(W39<>\"\",IF(W38=W39,1,(2*(W39+1)*FINV(0.025,2*(W39+1),2*(W38-W39)))/(2*(W38-W39)+2*(W39+1)*FINV(0.025,2*(W39+1),2*(W38-W39)))),\"\")","v":""},null,{"$f":"IF(Y39<>\"\",IF(Y38=Y39,1,(2*(Y39+1)*FINV(0.025,2*(Y39+1),2*(Y38-Y39)))/(2*(Y38-Y39)+2*(Y39+1)*FINV(0.025,2*(Y39+1),2*(Y38-Y39)))),\"\")","v":0.11570330822202776},null,null,null,null,null,null,null,"","","","","","",null,null,"","","",null,"","","",null,"","",null,null,0,0,null,0,0,null,"","","",0,"","","",0,"","","",0,0,"","","","","","","","","",null,null,null,null,37,"A",1,37,"",""]
[null,37,{"$f":"IF(Eingabe!C44=\"\",\"\",Eingabe!C44)","v":""},{"$f":"IF(Eingabe!D44=\"\",\"\",Eingabe!D44)","v":""},{"$f":"IF(Eingabe!E44=\"\",\"\",Eingabe!E44)","v":""},{"$f":"IF(Eingabe!F44=\"\",\"\",Eingabe!F44)","v":""},{"$f":"IF(Eingabe!G44=\"\",\"\",Eingabe!G44)","v":""},{"$f":"IF(Eingabe!H44=\"\",\"\",Eingabe!H44)","v":""},null,null,null,{"$f":"IF(Eingabe!I44=\"\",\"\",Eingabe!I44)","v":""},null,"",null,"Ergebnis",null,null,{"$f":"IF(S38<>\"\",S39/S38,\"\")","v":0.83333333333333337},null,{"$f":"IF(U38<>\"\",U39/U38,\"\")","v":0.8666666666666667},null,{"$f":"IF(W38<>\"\",W39/W38,\"\")","v":""},null,{"$f":"IF(Y38<>\"\",Y39/Y38,\"\")","v":0},null,null,null,null,null,null,null,"","","","","","",null,null,"","","",null,"","","",null,"","",null,null,0,0,null,0,0,null,"","","",0,"","","",0,"","","",0,0,"","","","","","","","","",null,null,null,null,38,"A",1,38,"",""]
[null,38,{"$f":"IF(Eingabe!C45=\"\",\"\",Eingabe!C45)","v":""},{"$f":"IF(Eingabe!D45=\"\",\"\",Eingabe!D45)","v":""},{"$f":"IF(Eingabe!E45=\"\",\"\",Eingabe!E45)","v":""},{"$f":"IF(Eingabe!F45=\"\",\"\",Eingabe!F45)","v":""},{"$f":"IF(Eingabe!G45=\"\",\"\",Eingabe!G45)","v":""},{"$f":"IF(Eingabe!H45=\"\",\"\",Eingabe!H45)","v":""},null,null,null,{"$f":"IF(Eingabe!I45=\"\",\"\",Eingabe!I45)","v":""},null,"",null,"95% lower CI (*7)",null,null,{"$f":"IF(S39<>\"\",IF(S39=0,0,(2*S39*FINV(0.975,2*S39,2*(S38-S39+1)))/(2*(S38-S39+1)+2*S39*FINV(0.975,2*S39,2*(S38-S39+1)))),\"\")","v":0.65278830116585618},null,{"$f":"IF(U39<>\"\",IF(S39=0,0,(2*U39*FINV(0.975,2*U39,2*(U38-U39+1)))/(2*(U38-U39+1)+2*U39*FINV(0.975,2*U39,2*(U38-U39+1)))),\"\")","v":0.69278164972387335},null,{"$f":"IF(W39<>\"\",IF(S39=0,0,(2*W39*FINV(0.975,2*W39,2*(W38-W39+1)))/(2*(W38-W39+1)+2*W39*FINV(0.975,2*W39,2*(W38-W39+1)))),\"\")","v":""},null,{"$f":"IF(Y39<>\"\",IF(S39=0,0,(2*Y39*FINV(0.975,2*Y39,2*(Y38-Y39+1)))/(2*(Y38-Y39+1)+2*Y39*FINV(0.975,2*Y39,2*(Y38-Y39+1)))),\"\")","v":{"$error":"#NUM!"}},null,null,null,null,null,null,null,"","","","","","",null,null,"","","",null,"","","",null,"","",null,null,0,0,null,0,0,null,"","","",0,"","","",0,"","","",0,0,"","","","","","","","","",null,null,null,null,39,"A",1,39,"",""]
[null,39,{"$f":"IF(Eingabe!C46=\"\",\"\",Eingabe!C46)","v":""},{"$f":"IF(Eingabe!D46=\"\",\"\",Eingabe!D46)","v":""},{"$f":"IF(Eingabe!E46=\"\",\"\",Eingabe!E46)","v":""},{"$f":"IF(Eingabe!F46=\"\",\"\",Eingabe!F46)","v":""},{"$f":"IF(Eingabe!G46=\"\",\"\",Eingabe!G46)","v":""},{"$f":"IF(Eingabe!H46=\"\",\"\",Eingabe!H46)","v":""},null,null,null,{"$f":"IF(Eingabe!I46=\"\",\"\",Eingabe!I46)","v":""},null,"",null,"Fleiss Kappa",null,null,{"$f":"BT74","v":0.87264021887824905},null,{"$f":"BW74","v":0.8941798941798943},null,{"$f":"BZ74","v":{"$error":"#DIV/0!"}},null,{"$f":"BT75","v":{"$error":"#DIV/0!"}},null,null,null,null,null,null,null,"","","","","","",null,null,"","","",null,"","","",null,"","",null,null,0,0,null,0,0,null,"","","",0,"","","",0,"","","",0,0,"","","","","","","","","",null,null,null,null,40,"A",1,40,"",""]
[null,40,{"$f":"IF(Eingabe!C47=\"\",\"\",Eingabe!C47)","v":""},{"$f":"IF(Eingabe!D47=\"\",\"\",Eingabe!D47)","v":""},{"$f":"IF(Eingabe!E47=\"\",\"\",Eingabe!E47)","v":""},{"$f":"IF(Eingabe!F47=\"\",\"\",Eingabe!F47)","v":""},{"$f":"IF(Eingabe!G47=\"\",\"\",Eingabe!G47)","v":""},{"$f":"IF(Eingabe!H47=\"\",\"\",Eingabe!H47)","v":""},null,null,null,{"$f":"IF(Eingabe!I47=\"\",\"\",Eingabe!I47)","v":""},null,"",null,null,null,null,null,null,null,null,null,null,null,null,null,null,null,null,null,null,"","","",null,null,"",null,null,"","","",null,"","","",null,"","",null,null,0,0,null,0,0,null,"","","",0,"","","",0,"","","",0,0,"","","","","","","","","",null,null,null,null,41,"A",1,41,"",""]
[null,{"$f":"B47+1","v":41},{"$f":"IF(Eingabe!C48=\"\",\"\",Eingabe!C48)","v":""},{"$f":"IF(Eingabe!D48=\"\",\"\",Eingabe!D48)","v":""},{"$f":"IF(Eingabe!E48=\"\",\"\",Eingabe!E48)","v":""},{"$f":"IF(Eingabe!F48=\"\",\"\",Eingabe!F48)","v":""},{"$f":"IF(Eingabe!G48=\"\",\"\",Eingabe!G48)","v":""},{"$f":"IF(Eingabe!H48=\"\",\"\",Eingabe!H48)","v":""},null,null,null,{"$f":"IF(Eingabe!I48=\"\",\"\",Eingabe!I48)","v":""},null,"",null,"Anmerkungen:",null,null,null,null,null,null,null,null,null,null,null,null,null,null,null,null,"","","",null,null,"",null,null,"","","",null,"","","",null,"","",null,null,0,0,null,0,0,null,"","","",0,"","","",0,"","","",0,0,"","","","","","","","","",null,null,null,null,42,"A",1,42,"",""]
[null,{"$f":"B48+1","v":42},{"$f":"IF(Eingabe!C49=\"\",\"\",Eingabe!C49)","v":""},{"$f":"IF(Eingabe!D49=\"\",\"\",Eingabe!D49)","v":""},{"$f":"IF(Eingabe!E49=\"\",\"\",Eingabe!E49)","v":""},{"$f":"IF(Eingabe!F49=\"\",\"\",Eingabe!F49)","v":""},{"$f":"IF(Eingabe!G49=\"\",\"\",Eingabe!G49)","v":""},{"$f":"IF(Eingabe!H49=\"\",\"\",Eingabe!H49)","v":""},null,null,null,{"$f":"IF(Eingabe!I49=\"\",\"\",Eingabe!I49)","v":""},null,"",null,null,null,null,null,null,null,null,null,null,null,null,null,null,null,null,null,null,"","","",null,null,"",null,null,"","","",null,"","","",null,"","",null,null,0,0,null,0,0,null,"","","",0,"","","",0,"","","",0,0,"","","","","","","","","",null,null,null,null,43,"A",1,43,"",""]
[null,43,{"$f":"IF(Eingabe!C50=\"\",\"\",Eingabe!C50)","v":""},{"$f":"IF(Eingabe!D50=\"\",\"\",Eingabe!D50)","v":""},{"$f":"IF(Eingabe!E50=\"\",\"\",Eingabe!E50)","v":""},{"$f":"IF(Eingabe!F50=\"\",\"\",Eingabe!F50)","v":""},{"$f":"IF(Eingabe!G50=\"\",\"\",Eingabe!G50)","v":""},{"$f":"IF(Eingabe!H50=\"\",\"\",Eingabe!H50)","v":""},null,null,null,{"$f":"IF(Eingabe!I50=\"\",\"\",Eingabe!I50)","v":""},null,"",null,null,null,null,null,null,null,null,null,null,null,null,null,null,null,null,null,null,"","","",null,null,"",null,null,"","","",null,"","","",null,"","",null,null,0,0,null,0,0,null,"","","",0,"","","",0,"","","",0,0,"","","","","","","","","",null,null,null,null,44,"A",1,44,"",""]
[null,44,{"$f":"IF(Eingabe!C51=\"\",\"\",Eingabe!C51)","v":""},{"$f":"IF(Eingabe!D51=\"\",\"\",Eingabe!D51)","v":""},{"$f":"IF(Eingabe!E51=\"\",\"\",Eingabe!E51)","v":""},{"$f":"IF(Eingabe!F51=\"\",\"\",Eingabe!F51)","v":""},{"$f":"IF(Eingabe!G51=\"\",\"\",Eingabe!G51)","v":""},{"$f":"IF(Eingabe!H51=\"\",\"\",Eingabe!H51)","v":""},null,null,null,{"$f":"IF(Eingabe!I51=\"\",\"\",Eingabe!I51)","v":""},null,"",null,null,null,null,null,null,null,null,null,null,null,null,null,null,null,null,null,null,"","","",null,null,"",null,null,"","","",null,"","","",null,"","",null,null,0,0,null,0,0,null,"","","",0,"","","",0,"","","",0,0,"","","","","","","","","",null,null,null,null,45,"A",1,45,"",""]
[null,45,{"$f":"IF(Eingabe!C52=\"\",\"\",Eingabe!C52)","v":""},{"$f":"IF(Eingabe!D52=\"\",\"\",Eingabe!D52)","v":""},{"$f":"IF(Eingabe!E52=\"\",\"\",Eingabe!E52)","v":""},{"$f":"IF(Eingabe!F52=\"\",\"\",Eingabe!F52)","v":""},{"$f":"IF(Eingabe!G52=\"\",\"\",Eingabe!G52)","v":""},{"$f":"IF(Eingabe!H52=\"\",\"\",Eingabe!H52)","v":""},null,null,null,{"$f":"IF(Eingabe!I52=\"\",\"\",Eingabe!I52)","v":""},null,"",null,null,null,null,null,null,null,null,null,null,null,null,null,null,null,null,null,null,"","","",null,null,"",null,null,"","","",null,"","","",null,"","",null,null,0,0,null,0,0,null,"","","",0,"","","",0,"","","",0,0,"","","","","","","","","",null,null,null,null,46,"A",1,46,"",""]
[null,46,{"$f":"IF(Eingabe!C53=\"\",\"\",Eingabe!C53)","v":""},{"$f":"IF(Eingabe!D53=\"\",\"\",Eingabe!D53)","v":""},{"$f":"IF(Eingabe!E53=\"\",\"\",Eingabe!E53)","v":""},{"$f":"IF(Eingabe!F53=\"\",\"\",Eingabe!F53)","v":""},{"$f":"IF(Eingabe!G53=\"\",\"\",Eingabe!G53)","v":""},{"$f":"IF(Eingabe!H53=\"\",\"\",Eingabe!H53)","v":""},null,null,null,{"$f":"IF(Eingabe!I53=\"\",\"\",Eingabe!I53)","v":""},null,"",null,null,null,null,null,null,null,null,null,null,null,null,null,null,null,null,null,null,"","","",null,null,"",null,null,"","","",null,"","","",null,"","",null,null,0,0,null,0,0,null,"","","",0,"","","",0,"","","",0,0,"","","","","","","","","",null,null,null,null,47,"A",1,47,"",""]
[null,47,{"$f":"IF(Eingabe!C54=\"\",\"\",Eingabe!C54)","v":""},{"$f":"IF(Eingabe!D54=\"\",\"\",Eingabe!D54)","v":""},{"$f":"IF(Eingabe!E54=\"\",\"\",Eingabe!E54)","v":""},{"$f":"IF(Eingabe!F54=\"\",\"\",Eingabe!F54)","v":""},{"$f":"IF(Eingabe!G54=\"\",\"\",Eingabe!G54)","v":""},{"$f":"IF(Eingabe!H54=\"\",\"\",Eingabe!H54)","v":""},null,null,null,{"$f":"IF(Eingabe!I54=\"\",\"\",Eingabe!I54)","v":""},null,"",null,null,null,null,null,null,null,null,null,null,null,null,null,null,null,null,null,null,"","","",null,null,"",null,null,"","","",null,"","","",null,"","",null,null,0,0,null,0,0,null,"","","",0,"","","",0,"","","",0,0,"","","","","","","","","",null,null,null,null,48,"A",1,48,"",""]
[null,48,{"$f":"IF(Eingabe!C55=\"\",\"\",Eingabe!C55)","v":""},{"$f":"IF(Eingabe!D55=\"\",\"\",Eingabe!D55)","v":""},{"$f":"IF(Eingabe!E55=\"\",\"\",Eingabe!E55)","v":""},{"$f":"IF(Eingabe!F55=\"\",\"\",Eingabe!F55)","v":""},{"$f":"IF(Eingabe!G55=\"\",\"\",Eingabe!G55)","v":""},{"$f":"IF(Eingabe!H55=\"\",\"\",Eingabe!H55)","v":""},null,null,null,{"$f":"IF(Eingabe!I55=\"\",\"\",Eingabe!I55)","v":""},null,"",null,null,null,null,null,null,null,null,null,null,null,null,null,null,null,null,null,null,"","","",null,null,"",null,null,"","","",null,"","","",null,"","",null,null,0,0,null,0,0,null,"","","",0,"","","",0,"","","",0,0,"","","","","","","","","",null,null,null,null,49,"A",1,49,"",""]
[null,49,{"$f":"IF(Eingabe!C56=\"\",\"\",Eingabe!C56)","v":""},{"$f":"IF(Eingabe!D56=\"\",\"\",Eingabe!D56)","v":""},{"$f":"IF(Eingabe!E56=\"\",\"\",Eingabe!E56)","v":""},{"$f":"IF(Eingabe!F56=\"\",\"\",Eingabe!F56)","v":""},{"$f":"IF(Eingabe!G56=\"\",\"\",Eingabe!G56)","v":""},{"$f":"IF(Eingabe!H56=\"\",\"\",Eingabe!H56)","v":""},null,null,null,{"$f":"IF(Eingabe!I56=\"\",\"\",Eingabe!I56)","v":""},null,"",null,null,null,null,null,null,null,null,null,null,null,null,null,null,null,null,null,null,"","","",null,null,"",null,null,"","","",null,"","","",null,"","",null,null,0,0,null,0,0,null,"","","",0,"","","",0,"","","",0,0,"","","","","","","","","",null,null,null,null,50,"A",1,50,"",""]
[null,50,{"$f":"IF(Eingabe!C57=\"\",\"\",Eingabe!C57)","v":""},{"$f":"IF(Eingabe!D57=\"\",\"\",Eingabe!D57)","v":""},{"$f":"IF(Eingabe!E57=\"\",\"\",Eingabe!E57)","v":""},{"$f":"IF(Eingabe!F57=\"\",\"\",Eingabe!F57)","v":""},{"$f":"IF(Eingabe!G57=\"\",\"\",Eingabe!G57)","v":""},{"$f":"IF(Eingabe!H57=\"\",\"\",Eingabe!H57)","v":""},null,null,null,{"$f":"IF(Eingabe!I57=\"\",\"\",Eingabe!I57)","v":""},null,"",null,null,null,null,null,null,null,null,null,null,null,null,null,null,null,null,null,null,null,null,null,null,null,null,null,null,null,null,null,null,null,null,null,null,null,null,null,null,0,0,null,0,0,null,"","","",0,"","","",0,"","","",0,0,"","","","","","","","","",null,null,null,null,51,"A",2,1,{"$f":"D8","v":1},{"$f":"L8","v":1}]
[null,null,null,null,null,null,null,null,null,null,null,null,null,null,null,null,null,null,null,null,null,null,null,null,null,null,null,null,null,null,null,null,null,null,null,null,null,null,null,null,null,null,null,null,null,null,null,null,null,null,null,"Summe",{"$f":"SUM(BA8:BA57)","v":55},{"$f":"SUM(BB8:BB57)","v":125},null,{"$f":"SUM(BD8:BD57)","v":236},{"$f":"SUM(BE8:BE57)","v":586},null,null,null,null,{"$f":"SUM(BJ8:BJ57)","v":160},null,null,null,{"$f":"SUM(BN8:BN57)","v":164},null,null,null,{"$f":"SUM(BR8:BR57)","v":0},{"$f":"SUM(BS8:BS57)","v":822},{"$f":"SUM(BT8:BT57)","v":60},58,52,60,56,56,0,0,0,null,null,null,null,52,"A",2,2,{"$f":"D9","v":1},{"$f":"L9","v":1}]
[null,null,null,null,null,null,null,null,null,null,null,null,null,null,null,null,null,null,null,null,null,null,null,null,null,null,null,null,null,null,null,null,null,null,null,null,null,null,null,null,null,null,null,null,null,null,null,null,null,null,null,null,null,null,null,null,null,null,{"$f":"COUNT(BG8:BG57)*2","v":60},{"$f":"COUNT(BH8:BH57)*2","v":60},{"$f":"COUNT(BI8:BI57)*2","v":60},{"$f":"SUM(BG59:BI59)","v":180},{"$f":"COUNT(BK8:BK57)*2","v":60},60,60,{"$f":"SUM(BK59:BM59)","v":180},0,0,0,{"$f":"SUM(BO59:BQ59)","v":0},{"$f":"BD68","v":900},{"$f":"COUNT(BT8:BT57)*2","v":60},{"$f":"COUNT(BU8:BU57)*2","v":60},60,60,60,60,0,0,0,null,null,null,null,53,"A",2,3,0,0]
[null,null,null,null,null,null,null,null,null,null,null,null,null,null,null,null,null,null,null,null,null,null,null,null,null,null,null,null,null,null,null,null,"A",null,"B",null,null,null,null,null,"C",null,null,null,null,null,null,null,null,null,null,null,{"$f":"BA58+BB58","v":180},null,null,{"$f":"BD58+BE58","v":822},null,null,null,null,null,{"$f":"BJ58/BJ59","v":0.88888888888888884},null,null,null,{"$f":"BN58/BN59","v":0.91111111111111109},null,null,null,{"$f":"BR58/BR59","v":{"$error":"#DIV/0!"}},{"$f":"BS58/BS59","v":0.91333333333333333},{"$f":"BT58/BT59","v":1},0.96666666666666667,{"$f":"IF(BV59=0,\"\",BV58/BV59)","v":0.8666666666666667},1,0.93333333333333335,{"$f":"IF(BY59=0,\"\",BY58/BY59)","v":0.93333333333333335},{"$error":"#DIV/0!"},{"$error":"#DIV/0!"},{"$f":"IF(CB59=0,\"\",CB58/CB59)","v":""},null,null,null,null,54,"A",2,4,0,0]
[null,null,null,null,null,null,null,null,null,null,null,null,null,null,null,null,null,null,null,null,null,null,null,null,null,null,null,null,null,null,null,null,{"$f":"IF(S28<>\"\",S30-S31,\"\")","v":0.11024497019859514},null,{"$f":"IF(U28<>\"\",U30-U31,\"\")","v":9.5779836994969947E-2},null,null,null,null,null,{"$f":"IF(W28<>\"\",W30-W31,\"\")","v":""},null,null,null,null,null,null,null,null,null,null,null,null,null,null,null,null,null,null,null,null,{"$f":"COUNTIF($C$8:$E$57,0)","v":28},null,null,null,{"$f":"COUNTIF($F$8:$H$57,0)","v":27},null,null,null,{"$f":"COUNTIF($I$8:$K$57,0)","v":0},{"$f":"COUNTIF($C$8:$K$57,0)","v":55},{"$f":"COUNTIF(C$8:C$57,0)+COUNTIF($L$8:$L$57,0)","v":18},17,20,18,18,18,9,9,9,null,null,null,null,55,"A",2,5,0,0]
[null,null,null,null,null,null,null,null,null,null,null,null,null,null,null,null,null,null,null,null,null,null,null,null,null,null,null,null,null,null,null,null,{"$f":"IF(S28<>\"\",S31-S32,\"\")","v":0.18054503216747719},null,{"$f":"IF(U28<>\"\",U31-U32,\"\")","v":0.17388501694279335},null,null,null,null,null,{"$f":"IF(W28<>\"\",W31-W32,\"\")","v":""},null,null,null,null,null,null,null,null,null,null,null,{"$f":"BA58/$BA$60","v":0.30555555555555558},{"$f":"BB58/$BA$60","v":0.69444444444444442},null,{"$f":"BA8+BB8","v":6},null,null,null,null,null,{"$f":"COUNTIF($C$8:$E$57,1)","v":62},null,null,null,{"$f":"COUNTIF($F$8:$H$57,1)","v":63},null,null,null,{"$f":"COUNTIF($I$8:$K$57,1)","v":0},{"$f":"COUNTIF($C$8:$K$57,1)","v":125},{"$f":"COUNTIF(C$8:C$57,1)+COUNTIF($L$8:$L$57,1)","v":42},43,40,42,42,42,21,21,21,null,null,null,null,56,"A",2,6,1,1]
[null,null,null,null,null,null,null,null,null,null,null,null,null,null,null,null,null,null,null,null,null,null,null,null,null,null,null,null,null,null,null,null,{"$f":"IF(S28<>\"\",S43-S44,\"\")","v":0.11024497019859514},null,{"$f":"IF(U28<>\"\",U43-U44,\"\")","v":9.5779836994969947E-2},null,null,null,null,null,{"$f":"IF(W28<>\"\",W43-W44,\"\")","v":""},null,null,null,null,null,null,null,null,null,null,null,null,null,null,null,null,null,null,null,null,null,null,null,null,null,null,null,null,null,null,null,null,null,null,null,null,null,null,null,null,null,null,null,57,"A",2,7,1,1]
[null,null,null,null,null,null,null,null,null,null,null,null,null,null,null,null,null,null,null,null,null,null,null,null,null,null,null,null,null,null,null,null,{"$f":"IF(S28<>\"\",S44-S45,\"\")","v":0.18054503216747719},null,{"$f":"IF(U28<>\"\",U44-U45,\"\")","v":0.17388501694279335},null,null,null,null,null,{"$f":"IF(W28<>\"\",W44-W45,\"\")","v":""},null,null,null,null,null,null,null,null,null,null,null,null,null,null,null,null,null,null,null,null,null,null,null,null,null,null,null,null,null,null,null,null,null,null,null,null,null,null,null,null,null,null,null,58,"A",2,8,1,1]
[null,null,null,null,null,null,null,null,null,null,null,null,null,null,null,null,null,null,null,null,null,null,null,null,null,null,null,null,null,null,null,null,null,null,null,null,null,null,null,null,null,null,null,null,null,null,null,null,null,null,null,null,null,null,null,null,null,null,null,null,null,{"$f":"BJ62+BJ61","v":90},null,null,null,{"$f":"BN62+BN61","v":90},null,null,null,{"$f":"BR62+BR61","v":0},{"$f":"BS62+BS61","v":180},{"$f":"BT62+BT61","v":60},{"$f":"BU62+BU61","v":60},60,60,60,60,30,30,30,null,null,null,null,59,"A",2,9,0,0]
[null,null,null,null,null,null,null,null,null,null,null,null,null,null,null,null,null,null,null,null,null,null,null,null,null,null,null,null,null,null,null,null,null,null,null,null,null,null,null,null,null,null,null,null,null,null,null,null,null,null,null,null,{"$f":"BA62*BA62","v":9.336419753086421E-2},{"$f":"BB62*BB62","v":0.48225308641975306},null,{"$f":"BD62*(BD62-1)","v":30},null,null,null,null,null,{"$f":"BJ61/BJ65","v":0.31111111111111112},null,null,null,{"$f":"BN61/BN65","v":0.3},null,null,null,{"$f":"BR61/BR65","v":{"$error":"#DIV/0!"}},{"$f":"BS61/BS65","v":0.30555555555555558},{"$f":"BT61/BT65","v":0.3},0.28333333333333333,0.33333333333333331,0.3,0.3,0.3,0.3,0.3,0.3,null,null,null,null,60,"A",2,10,1,1]
[null,null,null,null,null,null,null,null,null,null,null,null,null,null,null,null,null,null,null,null,null,null,null,null,null,null,null,null,null,null,null,null,null,null,null,null,null,null,null,null,null,null,null,null,null,null,null,null,null,null,null,null,null,null,null,null,null,null,null,null,null,{"$f":"BJ62/BJ65","v":0.68888888888888888},null,null,null,{"$f":"BN62/BN65","v":0.7},null,null,null,{"$f":"BR62/BR65","v":{"$error":"#DIV/0!"}},{"$f":"BS62/BS65","v":0.69444444444444442},{"$f":"BT62/BT65","v":0.7},0.71666666666666667,0.66666666666666663,0.7,0.7,0.7,0.7,0.7,0.7,null,null,null,null,61,"A",2,11,1,1]
[null,null,null,null,null,null,null,null,null,null,null,null,null,null,null,null,null,null,null,null,null,null,null,null,null,null,null,null,null,null,null,null,null,null,null,null,null,null,null,null,null,null,null,null,null,null,null,null,null,null,null,null,null,null,null,{"$f":"BD66*S28","v":900},null,null,null,null,null,{"$f":"BJ66*BJ66","v":9.6790123456790125E-2},null,null,null,{"$f":"BN66*BN66","v":0.09},null,null,null,{"$f":"BR66*BR66","v":{"$error":"#DIV/0!"}},{"$f":"BS66*BS66","v":9.336419753086421E-2},{"$f":"BT66*BT66","v":0.09},8.0277777777777767E-2,0.1111111111111111,0.09,0.09,0.09,0.09,0.09,0.09,null,null,null,null,62,"A",2,12,0,0]
[null,null,null,null,null,null,null,null,null,null,null,null,null,null,null,null,null,null,null,null,null,null,null,null,null,null,null,null,null,null,null,null,null,null,null,null,null,null,null,null,null,null,null,null,null,null,null,null,null,null,null,null,null,null,null,null,null,null,null,null,null,{"$f":"BJ67*BJ67","v":0.47456790123456788},null,null,null,{"$f":"BN67*BN67","v":0.48999999999999994},null,null,null,{"$f":"BR67*BR67","v":{"$error":"#DIV/0!"}},{"$f":"BS67*BS67","v":0.48225308641975306},0.48999999999999994,0.51361111111111113,0.44444444444444442,0.48999999999999994,0.48999999999999994,0.48999999999999994,0.48999999999999994,0.48999999999999994,0.48999999999999994,null,null,null,null,63,"A",2,13,1,1]
[null,null,null,null,null,null,null,null,null,null,null,null,null,null,null,null,null,null,null,null,null,null,null,null,null,null,null,null,null,null,null,null,null,null,null,null,null,null,null,null,null,null,null,null,null,null,null,null,null,null,null,null,null,null,null,null,null,null,null,null,null,null,null,null,null,null,null,null,null,null,null,null,null,null,null,null,null,null,null,null,null,null,null,null,64,"A",2,14,1,1]
[null,null,null,null,null,null,null,null,null,null,null,null,null,null,null,null,null,null,null,null,null,null,null,null,null,null,null,null,null,null,null,null,null,null,null,null,null,null,null,null,null,null,null,null,null,null,null,null,null,null,null,null,{"$f":"BA66+BB66","v":0.57561728395061729},null,null,{"$f":"BD60/BD68","v":0.91333333333333333},null,"Pexp",null,null,null,{"$f":"BJ69+BJ68","v":0.57135802469135799},null,null,null,{"$f":"BN69+BN68","v":0.57999999999999996},null,null,null,{"$f":"BR69+BR68","v":{"$error":"#DIV/0!"}},{"$f":"BS69+BS68","v":0.57561728395061729},{"$f":"BT69+BT68","v":0.57999999999999996},0.59388888888888891,0.55555555555555558,0.57999999999999996,0.57999999999999996,0.57999999999999996,0.57999999999999996,0.57999999999999996,0.57999999999999996,null,null,null,null,65,"A",2,15,1,1]
[null,null,null,null,null,null,null,null,null,null,null,null,null,null,null,null,null,null,null,null,null,null,null,null,null,null,null,null,null,null,null,null,null,null,null,null,null,null,null,null,null,null,null,null,null,null,null,null,null,null,null,null,null,null,null,null,null,null,null,null,null,"Within Prüfer",null,null,null,null,null,null,null,null,null,null,null,null,null,null,null,null,null,null,null,null,null,null,66,"A",2,16,1,1]
[null,null,null,null,null,null,null,null,null,null,null,null,null,null,null,null,null,null,null,null,null,null,null,null,null,null,null,null,null,null,null,null,null,null,null,null,null,null,null,null,null,null,null,null,null,null,null,null,null,null,null,null,null,null,"between",{"$f":"(BD71-BA71)/(1-BA71)","v":0.79578181818181815},null,null,null,null,null,{"$f":"IF(BJ60=1,1,(BJ60-BJ71)/(1-BJ71))","v":0.74078341013824878},null,null,null,{"$f":"IF(BN60=1,1,(BN60-BN71)/(1-BN71))","v":0.78835978835978837},null,null,null,{"$f":"IF(BR60=1,1,(BR60-BR71)/(1-BR71))","v":{"$error":"#DIV/0!"}},0.79578181818181815,1,0.91792065663474698,0.70000000000000007,1,0.84126984126984128,0.84126984126984128,{"$error":"#DIV/0!"},{"$error":"#DIV/0!"},{"$error":"#VALUE!"},null,null,null,null,67,"A",2,17,1,1]
[null,null,null,null,null,null,null,null,null,null,null,null,null,null,null,null,null,null,null,null,null,null,null,null,null,null,null,null,null,null,null,null,null,null,null,null,null,null,null,null,null,null,null,null,null,null,null,null,null,null,null,null,null,null,null,null,null,null,null,null,null,null,null,null,null,null,null,null,null,null,null,{"$f":"AVERAGE(BT73:BV73)","v":0.87264021887824905},null,null,{"$f":"AVERAGE(BW73:BY73)","v":0.8941798941798943},null,null,{"$f":"AVERAGE(BZ73:CB73)","v":{"$error":"#DIV/0!"}},null,null,null,null,null,null,68,"A",2,18,1,1]
[null,null,null,null,null,null,null,null,null,null,null,null,null,null,null,null,null,null,null,null,null,null,null,null,null,null,null,null,null,null,null,null,null,null,null,null,null,null,null,null,null,null,null,null,null,null,null,null,null,null,null,null,null,null,null,null,null,null,null,null,null,null,null,null,null,null,null,null,null,null,null,{"$f":"AVERAGE(BT73:CB73)","v":{"$error":"#DIV/0!"}},null,null,null,null,null,null,null,null,null,null,null,null,69,"A",2,19,1,1]
[null,null,null,null,null,null,null,null,null,null,null,null,null,null,null,null,null,null,null,null,null,null,null,null,null,null,null,null,null,null,null,null,null,null,null,null,null,null,null,null,null,null,null,null,null,null,null,null,null,null,null,null,null,null,null,null,null,null,null,null,null,null,null,null,null,null,null,null,null,null,null,null,null,null,null,null,null,null,null,null,null,null,null,null,70,"A",2,20,1,1]
[null,null,null,null,null,null,null,null,null,null,null,null,null,null,null,null,null,null,null,null,null,null,null,null,null,null,null,null,null,null,null,null,null,null,null,null,null,null,null,null,null,null,null,null,null,null,null,null,null,null,null,null,null,null,null,null,null,null,null,null,null,null,null,null,null,null,null,null,null,null,null,null,null,null,null,null,null,null,null,null,null,null,null,null,71,"A",2,21,1,1]
[null,null,null,null,null,null,null,null,null,null,null,null,null,null,null,null,null,null,null,null,null,null,null,null,null,null,null,null,null,null,null,null,null,null,null,null,null,null,null,null,null,null,null,null,null,null,null,null,null,null,null,null,null,null,null,null,null,null,null,null,null,null,null,null,null,null,null,null,null,null,null,null,null,null,null,null,null,null,null,null,null,null,null,null,72,"A",2,22,0,0]
[null,null,null,null,null,null,null,null,null,null,null,null,null,null,null,null,null,null,null,null,null,null,null,null,null,null,null,null,null,null,null,null,null,null,null,null,null,null,null,null,null,null,null,null,null,null,null,null,null,null,null,null,null,null,null,null,null,null,null,null,null,null,null,null,null,null,null,null,null,null,null,null,null,null,null,null,null,null,null,null,null,null,null,null,73,"A",2,23,1,1]
[null,null,null,null,null,null,null,null,null,null,null,null,null,null,null,null,null,null,null,null,null,null,null,null,null,null,null,null,null,null,null,null,null,null,null,null,null,null,null,null,null,null,null,null,null,null,null,null,null,null,null,null,null,null,null,null,null,null,null,null,null,null,null,null,null,null,null,null,null,null,null,null,null,null,null,null,null,null,null,null,null,null,null,null,74,"A",2,24,1,1]
[null,null,null,null,null,null,null,null,null,null,null,null,null,null,null,null,null,null,null,null,null,null,null,null,null,null,null,null,null,null,null,null,null,null,null,null,null,null,null,null,null,null,null,null,null,null,null,null,null,null,null,null,null,null,null,null,null,null,null,null,null,null,null,null,null,null,null,null,null,null,null,null,null,null,null,null,null,null,null,null,null,null,null,null,75,"A",2,25,0,0]
[null,null,null,null,null,null,null,null,null,null,null,null,null,null,null,null,null,null,null,null,null,null,null,null,null,null,null,null,null,null,null,null,null,null,null,null,null,null,null,null,null,null,null,null,null,null,null,null,null,null,null,null,null,null,null,null,null,null,null,null,null,null,null,null,null,null,null,null,null,null,null,null,null,null,null,null,null,null,null,null,null,null,null,null,76,"A",2,26,1,0]
[null,null,null,null,null,null,null,null,null,null,null,null,null,null,null,null,null,null,null,null,null,null,null,null,null,null,null,null,null,null,null,null,null,null,null,null,null,null,null,null,null,null,null,null,null,null,null,null,null,null,null,null,null,null,null,null,null,null,null,null,null,null,null,null,null,null,null,null,null,null,null,null,null,null,null,null,null,null,null,null,null,null,null,null,77,"A",2,27,1,1]
[null,null,null,null,null,null,null,null,null,null,null,null,null,null,null,null,null,null,null,null,null,null,null,null,null,null,null,null,null,null,null,null,null,null,null,null,null,null,null,null,null,null,null,null,null,null,null,null,null,null,null,null,null,null,null,null,null,null,null,null,null,null,null,null,null,null,null,null,null,null,null,null,null,null,null,null,null,null,null,null,null,null,null,null,78,"A",2,28,1,1]
[null,null,null,null,null,null,null,null,null,null,null,null,null,null,null,null,null,null,null,null,null,null,null,null,null,null,null,null,null,null,null,null,null,null,null,null,null,null,null,null,null,null,null,null,null,null,null,null,null,null,null,null,null,null,null,null,null,null,null,null,null,null,null,null,null,null,null,null,null,null,null,null,null,null,null,null,null,null,null,null,null,null,null,null,79,"A",2,29,1,1]
[null,null,null,null,null,null,null,null,null,null,null,null,null,null,null,null,null,null,null,null,null,null,null,null,null,null,null,null,null,null,null,null,null,null,null,null,null,null,null,null,null,null,null,null,null,null,null,null,null,null,null,null,null,null,null,null,null,null,null,null,null,null,null,null,null,null,null,null,null,null,null,null,null,null,null,null,null,null,null,null,null,null,null,null,80,"A",2,30,0,0]
[null,null,null,null,null,null,null,null,null,null,null,null,null,null,null,null,null,null,null,null,null,null,null,null,null,null,null,null,null,null,null,null,null,null,null,null,null,null,null,null,null,null,null,null,null,null,null,null,null,null,null,null,null,null,null,null,null,null,null,null,null,null,null,null,null,null,null,null,null,null,null,null,null,null,null,null,null,null,null,null,null,null,null,null,81,"A",2,31,"",""]
[null,null,null,null,null,null,null,null,null,null,null,null,null,null,null,null,null,null,null,null,null,null,null,null,null,null,null,null,null,null,null,null,null,null,null,null,null,null,null,null,null,null,null,null,null,null,null,null,null,null,null,null,null,null,null,null,null,null,null,null,null,null,null,null,null,null,null,null,null,null,null,null,null,null,null,null,null,null,null,null,null,null,null,null,82,"A",2,32,"",""]
[null,null,null,null,null,null,null,null,null,null,null,null,null,null,null,null,null,null,null,null,null,null,null,null,null,null,null,null,null,null,null,null,null,null,null,null,null,null,null,null,null,null,null,null,null,null,null,null,null,null,null,null,null,null,null,null,null,null,null,null,null,null,null,null,null,null,null,null,null,null,null,null,null,null,null,null,null,null,null,null,null,null,null,null,83,"A",2,33,"",""]
[null,null,null,null,null,null,null,null,null,null,null,null,null,null,null,null,null,null,null,null,null,null,null,null,null,null,null,null,null,null,null,null,null,null,null,null,null,null,null,null,null,null,null,null,null,null,null,null,null,null,null,null,null,null,null,null,null,null,null,null,null,null,null,null,null,null,null,null,null,null,null,null,null,null,null,null,null,null,null,null,null,null,null,null,84,"A",2,34,"",""]
[null,null,null,null,null,null,null,null,null,null,null,null,null,null,null,null,null,null,null,null,null,null,null,null,null,null,null,null,null,null,null,null,null,null,null,null,null,null,null,null,null,null,null,null,null,null,null,null,null,null,null,null,null,null,null,null,null,null,null,null,null,null,null,null,null,null,null,null,null,null,null,null,null,null,null,null,null,null,null,null,null,null,null,null,85,"A",2,35,"",""]
[null,null,null,null,null,null,null,null,null,null,null,null,null,null,null,null,null,null,null,null,null,null,null,null,null,null,null,null,null,null,null,null,null,null,null,null,null,null,null,null,null,null,null,null,null,null,null,null,null,null,null,null,null,null,null,null,null,null,null,null,null,null,null,null,null,null,null,null,null,null,null,null,null,null,null,null,null,null,null,null,null,null,null,null,86,"A",2,36,"",""]
[null,null,null,null,null,null,null,null,null,null,null,null,null,null,null,null,null,null,null,null,null,null,null,null,null,null,null,null,null,null,null,null,null,null,null,null,null,null,null,null,null,null,null,null,null,null,null,null,null,null,null,null,null,null,null,null,null,null,null,null,null,null,null,null,null,null,null,null,null,null,null,null,null,null,null,null,null,null,null,null,null,null,null,null,87,"A",2,37,"",""]
[null,null,null,null,null,null,null,null,null,null,null,null,null,null,null,null,null,null,null,null,null,null,null,null,null,null,null,null,null,null,null,null,null,null,null,null,null,null,null,null,null,null,null,null,null,null,null,null,null,null,null,null,null,null,null,null,null,null,null,null,null,null,null,null,null,null,null,null,null,null,null,null,null,null,null,null,null,null,null,null,null,null,null,null,88,"A",2,38,"",""]
[null,null,null,null,null,null,null,null,null,null,null,null,null,null,null,null,null,null,null,null,null,null,null,null,null,null,null,null,null,null,null,null,null,null,null,null,null,null,null,null,null,null,null,null,null,null,null,null,null,null,null,null,null,null,null,null,null,null,null,null,null,null,null,null,null,null,null,null,null,null,null,null,null,null,null,null,null,null,null,null,null,null,null,null,89,"A",2,39,"",""]
[null,null,null,null,null,null,null,null,null,null,null,null,null,null,null,null,null,null,null,null,null,null,null,null,null,null,null,null,null,null,null,null,null,null,null,null,null,null,null,null,null,null,null,null,null,null,null,null,null,null,null,null,null,null,null,null,null,null,null,null,null,null,null,null,null,null,null,null,null,null,null,null,null,null,null,null,null,null,null,null,null,null,null,null,90,"A",2,40,"",""]
[null,null,null,null,null,null,null,null,null,null,null,null,null,null,null,null,null,null,null,null,null,null,null,null,null,null,null,null,null,null,null,null,null,null,null,null,null,null,null,null,null,null,null,null,null,null,null,null,null,null,null,null,null,null,null,null,null,null,null,null,null,null,null,null,null,null,null,null,null,null,null,null,null,null,null,null,null,null,null,null,null,null,null,null,91,"A",2,41,"",""]
[null,null,null,null,null,null,null,null,null,null,null,null,null,null,null,null,null,null,null,null,null,null,null,null,null,null,null,null,null,null,null,null,null,null,null,null,null,null,null,null,null,null,null,null,null,null,null,null,null,null,null,null,null,null,null,null,null,null,null,null,null,null,null,null,null,null,null,null,null,null,null,null,null,null,null,null,null,null,null,null,null,null,null,null,92,"A",2,42,"",""]
[null,null,null,null,null,null,null,null,null,null,null,null,null,null,null,null,null,null,null,null,null,null,null,null,null,null,null,null,null,null,null,null,null,null,null,null,null,null,null,null,null,null,null,null,null,null,null,null,null,null,null,null,null,null,null,null,null,null,null,null,null,null,null,null,null,null,null,null,null,null,null,null,null,null,null,null,null,null,null,null,null,null,null,null,93,"A",2,43,"",""]
[null,null,null,null,null,null,null,null,null,null,null,null,null,null,null,null,null,null,null,null,null,null,null,null,null,null,null,null,null,null,null,null,null,null,null,null,null,null,null,null,null,null,null,null,null,null,null,null,null,null,null,null,null,null,null,null,null,null,null,null,null,null,null,null,null,null,null,null,null,null,null,null,null,null,null,null,null,null,null,null,null,null,null,null,94,"A",2,44,"",""]
[null,null,null,null,null,null,null,null,null,null,null,null,null,null,null,null,null,null,null,null,null,null,null,null,null,null,null,null,null,null,null,null,null,null,null,null,null,null,null,null,null,null,null,null,null,null,null,null,null,null,null,null,null,null,null,null,null,null,null,null,null,null,null,null,null,null,null,null,null,null,null,null,null,null,null,null,null,null,null,null,null,null,null,null,95,"A",2,45,"",""]
[null,null,null,null,null,null,null,null,null,null,null,null,null,null,null,null,null,null,null,null,null,null,null,null,null,null,null,null,null,null,null,null,null,null,null,null,null,null,null,null,null,null,null,null,null,null,null,null,null,null,null,null,null,null,null,null,null,null,null,null,null,null,null,null,null,null,null,null,null,null,null,null,null,null,null,null,null,null,null,null,null,null,null,null,96,"A",2,46,"",""]
[null,null,null,null,null,null,null,null,null,null,null,null,null,null,null,null,null,null,null,null,null,null,null,null,null,null,null,null,null,null,null,null,null,null,null,null,null,null,null,null,null,null,null,null,null,null,null,null,null,null,null,null,null,null,null,null,null,null,null,null,null,null,null,null,null,null,null,null,null,null,null,null,null,null,null,null,null,null,null,null,null,null,null,null,97,"A",2,47,"",""]
[null,null,null,null,null,null,null,null,null,null,null,null,null,null,null,null,null,null,null,null,null,null,null,null,null,null,null,null,null,null,null,null,null,null,null,null,null,null,null,null,null,null,null,null,null,null,null,null,null,null,null,null,null,null,null,null,null,null,null,null,null,null,null,null,null,null,null,null,null,null,null,null,null,null,null,null,null,null,null,null,null,null,null,null,98,"A",2,48,"",""]
[null,null,null,null,null,null,null,null,null,null,null,null,null,null,null,null,null,null,null,null,null,null,null,null,null,null,null,null,null,null,null,null,null,null,null,null,null,null,null,null,null,null,null,null,null,null,null,null,null,null,null,null,null,null,null,null,null,null,null,null,null,null,null,null,null,null,null,null,null,null,null,null,null,null,null,null,null,null,null,null,null,null,null,null,99,"A",2,49,"",""]
[null,null,null,null,null,null,null,null,null,null,null,null,null,null,null,null,null,null,null,null,null,null,null,null,null,null,null,null,null,null,null,null,null,null,null,null,null,null,null,null,null,null,null,null,null,null,null,null,null,null,null,null,null,null,null,null,null,null,null,null,null,null,null,null,null,null,null,null,null,null,null,null,null,null,null,null,null,null,null,null,null,null,null,null,100,"A",2,50,"",""]
[null,null,null,null,null,null,null,null,null,null,null,null,null,null,null,null,null,null,null,null,null,null,null,null,null,null,null,null,null,null,null,null,null,null,null,null,null,null,null,null,null,null,null,null,null,null,null,null,null,null,null,null,null,null,null,null,null,null,null,null,null,null,null,null,null,null,null,null,null,null,null,null,null,null,null,null,null,null,null,null,null,null,null,null,101,"A",3,1,{"$f":"E8","v":1},{"$f":"L8","v":1}]
[null,null,null,null,null,null,null,null,null,null,null,null,null,null,null,null,null,null,null,null,null,null,null,null,null,null,null,null,null,null,null,null,null,null,null,null,null,null,null,null,null,null,null,null,null,null,null,null,null,null,null,null,null,null,null,null,null,null,null,null,null,null,null,null,null,null,null,null,null,null,null,null,null,null,null,null,null,null,null,null,null,null,null,null,102,"A",3,2,{"$f":"E9","v":1},{"$f":"L9","v":1}]
[null,null,null,null,null,null,null,null,null,null,null,null,null,null,null,null,null,null,null,null,null,null,null,null,null,null,null,null,null,null,null,null,null,null,null,null,null,null,null,null,null,null,null,null,null,null,null,null,null,null,null,null,null,null,null,null,null,null,null,null,null,null,null,null,null,null,null,null,null,null,null,null,null,null,null,null,null,null,null,null,null,null,null,null,103,"A",3,3,0,0]
[null,null,null,null,null,null,null,null,null,null,null,null,null,null,null,null,null,null,null,null,null,null,null,null,null,null,null,null,null,null,null,null,null,null,null,null,null,null,null,null,null,null,null,null,null,null,null,null,null,null,null,null,null,null,null,null,null,null,null,null,null,null,null,null,null,null,null,null,null,null,null,null,null,null,null,null,null,null,null,null,null,null,null,null,104,"A",3,4,0,0]
[null,null,null,null,null,null,null,null,null,null,null,null,null,null,null,null,null,null,null,null,null,null,null,null,null,null,null,null,null,null,null,null,null,null,null,null,null,null,null,null,null,null,null,null,null,null,null,null,null,null,null,null,null,null,null,null,null,null,null,null,null,null,null,null,null,null,null,null,null,null,null,null,null,null,null,null,null,null,null,null,null,null,null,null,105,"A",3,5,0,0]
[null,null,null,null,null,null,null,null,null,null,null,null,null,null,null,null,null,null,null,null,null,null,null,null,null,null,null,null,null,null,null,null,null,null,null,null,null,null,null,null,null,null,null,null,null,null,null,null,null,null,null,null,null,null,null,null,null,null,null,null,null,null,null,null,null,null,null,null,null,null,null,null,null,null,null,null,null,null,null,null,null,null,null,null,106,"A",3,6,0,1]
[null,null,null,null,null,null,null,null,null,null,null,null,null,null,null,null,null,null,null,null,null,null,null,null,null,null,null,null,null,null,null,null,null,null,null,null,null,null,null,null,null,null,null,null,null,null,null,null,null,null,null,null,null,null,null,null,null,null,null,null,null,null,null,null,null,null,null,null,null,null,null,null,null,null,null,null,null,null,null,null,null,null,null,null,107,"A",3,7,1,1]
[null,null,null,null,null,null,null,null,null,null,null,null,null,null,null,null,null,null,null,null,null,null,null,null,null,null,null,null,null,null,null,null,null,null,null,null,null,null,null,null,null,null,null,null,null,null,null,null,null,null,null,null,null,null,null,null,null,null,null,null,null,null,null,null,null,null,null,null,null,null,null,null,null,null,null,null,null,null,null,null,null,null,null,null,108,"A",3,8,1,1]
[null,null,null,null,null,null,null,null,null,null,null,null,null,null,null,null,null,null,null,null,null,null,null,null,null,null,null,null,null,null,null,null,null,null,null,null,null,null,null,null,null,null,null,null,null,null,null,null,null,null,null,null,null,null,null,null,null,null,null,null,null,null,null,null,null,null,null,null,null,null,null,null,null,null,null,null,null,null,null,null,null,null,null,null,109,"A",3,9,0,0]
[null,null,null,null,null,null,null,null,null,null,null,null,null,null,null,null,null,null,null,null,null,null,null,null,null,null,null,null,null,null,null,null,null,null,null,null,null,null,null,null,null,null,null,null,null,null,null,null,null,null,null,null,null,null,null,null,null,null,null,null,null,null,null,null,null,null,null,null,null,null,null,null,null,null,null,null,null,null,null,null,null,null,null,null,110,"A",3,10,1,1]
[null,null,null,null,null,null,null,null,null,null,null,null,null,null,null,null,null,null,null,null,null,null,null,null,null,null,null,null,null,null,null,null,null,null,null,null,null,null,null,null,null,null,null,null,null,null,null,null,null,null,null,null,null,null,null,null,null,null,null,null,null,null,null,null,null,null,null,null,null,null,null,null,null,null,null,null,null,null,null,null,null,null,null,null,111,"A",3,11,1,1]
[null,null,null,null,null,null,null,null,null,null,null,null,null,null,null,null,null,null,null,null,null,null,null,null,null,null,null,null,null,null,null,null,null,null,null,null,null,null,null,null,null,null,null,null,null,null,null,null,null,null,null,null,null,null,null,null,null,null,null,null,null,null,null,null,null,null,null,null,null,null,null,null,null,null,null,null,null,null,null,null,null,null,null,null,112,"A",3,12,0,0]
[null,null,null,null,null,null,null,null,null,null,null,null,null,null,null,null,null,null,null,null,null,null,null,null,null,null,null,null,null,null,null,null,null,null,null,null,null,null,null,null,null,null,null,null,null,null,null,null,null,null,null,null,null,null,null,null,null,null,null,null,null,null,null,null,null,null,null,null,null,null,null,null,null,null,null,null,null,null,null,null,null,null,null,null,113,"A",3,13,1,1]
[null,null,null,null,null,null,null,null,null,null,null,null,null,null,null,null,null,null,null,null,null,null,null,null,null,null,null,null,null,null,null,null,null,null,null,null,null,null,null,null,null,null,null,null,null,null,null,null,null,null,null,null,null,null,null,null,null,null,null,null,null,null,null,null,null,null,null,null,null,null,null,null,null,null,null,null,null,null,null,null,null,null,null,null,114,"A",3,14,0,1]
[null,null,null,null,null,null,null,null,null,null,null,null,null,null,null,null,null,null,null,null,null,null,null,null,null,null,null,null,null,null,null,null,null,null,null,null,null,null,null,null,null,null,null,null,null,null,null,null,null,null,null,null,null,null,null,null,null,null,null,null,null,null,null,null,null,null,null,null,null,null,null,null,null,null,null,null,null,null,null,null,null,null,null,null,115,"A",3,15,1,1]
[null,null,null,null,null,null,null,null,null,null,null,null,null,null,null,null,null,null,null,null,null,null,null,null,null,null,null,null,null,null,null,null,null,null,null,null,null,null,null,null,null,null,null,null,null,null,null,null,null,null,null,null,null,null,null,null,null,null,null,null,null,null,null,null,null,null,null,null,null,null,null,null,null,null,null,null,null,null,null,null,null,null,null,null,116,"A",3,16,1,1]
[null,null,null,null,null,null,null,null,null,null,null,null,null,null,null,null,null,null,null,null,null,null,null,null,null,null,null,null,null,null,null,null,null,null,null,null,null,null,null,null,null,null,null,null,null,null,null,null,null,null,null,null,null,null,null,null,null,null,null,null,null,null,null,null,null,null,null,null,null,null,null,null,null,null,null,null,null,null,null,null,null,null,null,null,117,"A",3,17,1,1]
[null,null,null,null,null,null,null,null,null,null,null,null,null,null,null,null,null,null,null,null,null,null,null,null,null,null,null,null,null,null,null,null,null,null,null,null,null,null,null,null,null,null,null,null,null,null,null,null,null,null,null,null,null,null,null,null,null,null,null,null,null,null,null,null,null,null,null,null,null,null,null,null,null,null,null,null,null,null,null,null,null,null,null,null,118,"A",3,18,1,1]
[null,null,null,null,null,null,null,null,null,null,null,null,null,null,null,null,null,null,null,null,null,null,null,null,null,null,null,null,null,null,null,null,null,null,null,null,null,null,null,null,null,null,null,null,null,null,null,null,null,null,null,null,null,null,null,null,null,null,null,null,null,null,null,null,null,null,null,null,null,null,null,null,null,null,null,null,null,null,null,null,null,null,null,null,119,"A",3,19,1,1]
[null,null,null,null,null,null,null,null,null,null,null,null,null,null,null,null,null,null,null,null,null,null,null,null,null,null,null,null,null,null,null,null,null,null,null,null,null,null,null,null,null,null,null,null,null,null,null,null,null,null,null,null,null,null,null,null,null,null,null,null,null,null,null,null,null,null,null,null,null,null,null,null,null,null,null,null,null,null,null,null,null,null,null,null,120,"A",3,20,1,1]
[null,null,null,null,null,null,null,null,null,null,null,null,null,null,null,null,null,null,null,null,null,null,null,null,null,null,null,null,null,null,null,null,null,null,null,null,null,null,null,null,null,null,null,null,null,null,null,null,null,null,null,null,null,null,null,null,null,null,null,null,null,null,null,null,null,null,null,null,null,null,null,null,null,null,null,null,null,null,null,null,null,null,null,null,121,"A",3,21,0,1]
[null,null,null,null,null,null,null,null,null,null,null,null,null,null,null,null,null,null,null,null,null,null,null,null,null,null,null,null,null,null,null,null,null,null,null,null,null,null,null,null,null,null,null,null,null,null,null,null,null,null,null,null,null,null,null,null,null,null,null,null,null,null,null,null,null,null,null,null,null,null,null,null,null,null,null,null,null,null,null,null,null,null,null,null,122,"A",3,22,1,0]
[null,null,null,null,null,null,null,null,null,null,null,null,null,null,null,null,null,null,null,null,null,null,null,null,null,null,null,null,null,null,null,null,null,null,null,null,null,null,null,null,null,null,null,null,null,null,null,null,null,null,null,null,null,null,null,null,null,null,null,null,null,null,null,null,null,null,null,null,null,null,null,null,null,null,null,null,null,null,null,null,null,null,null,null,123,"A",3,23,1,1]
[null,null,null,null,null,null,null,null,null,null,null,null,null,null,null,null,null,null,null,null,null,null,null,null,null,null,null,null,null,null,null,null,null,null,null,null,null,null,null,null,null,null,null,null,null,null,null,null,null,null,null,null,null,null,null,null,null,null,null,null,null,null,null,null,null,null,null,null,null,null,null,null,null,null,null,null,null,null,null,null,null,null,null,null,124,"A",3,24,1,1]
[null,null,null,null,null,null,null,null,null,null,null,null,null,null,null,null,null,null,null,null,null,null,null,null,null,null,null,null,null,null,null,null,null,null,null,null,null,null,null,null,null,null,null,null,null,null,null,null,null,null,null,null,null,null,null,null,null,null,null,null,null,null,null,null,null,null,null,null,null,null,null,null,null,null,null,null,null,null,null,null,null,null,null,null,125,"A",3,25,0,0]
[null,null,null,null,null,null,null,null,null,null,null,null,null,null,null,null,null,null,null,null,null,null,null,null,null,null,null,null,null,null,null,null,null,null,null,null,null,null,null,null,null,null,null,null,null,null,null,null,null,null,null,null,null,null,null,null,null,null,null,null,null,null,null,null,null,null,null,null,null,null,null,null,null,null,null,null,null,null,null,null,null,null,null,null,126,"A",3,26,0,0]
[null,null,null,null,null,null,null,null,null,null,null,null,null,null,null,null,null,null,null,null,null,null,null,null,null,null,null,null,null,null,null,null,null,null,null,null,null,null,null,null,null,null,null,null,null,null,null,null,null,null,null,null,null,null,null,null,null,null,null,null,null,null,null,null,null,null,null,null,null,null,null,null,null,null,null,null,null,null,null,null,null,null,null,null,127,"A",3,27,1,1]
[null,null,null,null,null,null,null,null,null,null,null,null,null,null,null,null,null,null,null,null,null,null,null,null,null,null,null,null,null,null,null,null,null,null,null,null,null,null,null,null,null,null,null,null,null,null,null,null,null,null,null,null,null,null,null,null,null,null,null,null,null,null,null,null,null,null,null,null,null,null,null,null,null,null,null,null,null,null,null,null,null,null,null,null,128,"A",3,28,1,1]
[null,null,null,null,null,null,null,null,null,null,null,null,null,null,null,null,null,null,null,null,null,null,null,null,null,null,null,null,null,null,null,null,null,null,null,null,null,null,null,null,null,null,null,null,null,null,null,null,null,null,null,null,null,null,null,null,null,null,null,null,null,null,null,null,null,null,null,null,null,null,null,null,null,null,null,null,null,null,null,null,null,null,null,null,129,"A",3,29,1,1]
[null,null,null,null,null,null,null,null,null,null,null,null,null,null,null,null,null,null,null,null,null,null,null,null,null,null,null,null,null,null,null,null,null,null,null,null,null,null,null,null,null,null,null,null,null,null,null,null,null,null,null,null,null,null,null,null,null,null,null,null,null,null,null,null,null,null,null,null,null,null,null,null,null,null,null,null,null,null,null,null,null,null,null,null,130,"A",3,30,0,0]
[null,null,null,null,null,null,null,null,null,null,null,null,null,null,null,null,null,null,null,null,null,null,null,null,null,null,null,null,null,null,null,null,null,null,null,null,null,null,null,null,null,null,null,null,null,null,null,null,null,null,null,null,null,null,null,null,null,null,null,null,null,null,null,null,null,null,null,null,null,null,null,null,null,null,null,null,null,null,null,null,null,null,null,null,131,"A",3,31,"",""]
[null,null,null,null,null,null,null,null,null,null,null,null,null,null,null,null,null,null,null,null,null,null,null,null,null,null,null,null,null,null,null,null,null,null,null,null,null,null,null,null,null,null,null,null,null,null,null,null,null,null,null,null,null,null,null,null,null,null,null,null,null,null,null,null,null,null,null,null,null,null,null,null,null,null,null,null,null,null,null,null,null,null,null,null,132,"A",3,32,"",""]
[null,null,null,null,null,null,null,null,null,null,null,null,null,null,null,null,null,null,null,null,null,null,null,null,null,null,null,null,null,null,null,null,null,null,null,null,null,null,null,null,null,null,null,null,null,null,null,null,null,null,null,null,null,null,null,null,null,null,null,null,null,null,null,null,null,null,null,null,null,null,null,null,null,null,null,null,null,null,null,null,null,null,null,null,133,"A",3,33,"",""]
[null,null,null,null,null,null,null,null,null,null,null,null,null,null,null,null,null,null,null,null,null,null,null,null,null,null,null,null,null,null,null,null,null,null,null,null,null,null,null,null,null,null,null,null,null,null,null,null,null,null,null,null,null,null,null,null,null,null,null,null,null,null,null,null,null,null,null,null,null,null,null,null,null,null,null,null,null,null,null,null,null,null,null,null,134,"A",3,34,"",""]
[null,null,null,null,null,null,null,null,null,null,null,null,null,null,null,null,null,null,null,null,null,null,null,null,null,null,null,null,null,null,null,null,null,null,null,null,null,null,null,null,null,null,null,null,null,null,null,null,null,null,null,null,null,null,null,null,null,null,null,null,null,null,null,null,null,null,null,null,null,null,null,null,null,null,null,null,null,null,null,null,null,null,null,null,135,"A",3,35,"",""]
[null,null,null,null,null,null,null,null,null,null,null,null,null,null,null,null,null,null,null,null,null,null,null,null,null,null,null,null,null,null,null,null,null,null,null,null,null,null,null,null,null,null,null,null,null,null,null,null,null,null,null,null,null,null,null,null,null,null,null,null,null,null,null,null,null,null,null,null,null,null,null,null,null,null,null,null,null,null,null,null,null,null,null,null,136,"A",3,36,"",""]
[null,null,null,null,null,null,null,null,null,null,null,null,null,null,null,null,null,null,null,null,null,null,null,null,null,null,null,null,null,null,null,null,null,null,null,null,null,null,null,null,null,null,null,null,null,null,null,null,null,null,null,null,null,null,null,null,null,null,null,null,null,null,null,null,null,null,null,null,null,null,null,null,null,null,null,null,null,null,null,null,null,null,null,null,137,"A",3,37,"",""]
[null,null,null,null,null,null,null,null,null,null,null,null,null,null,null,null,null,null,null,null,null,null,null,null,null,null,null,null,null,null,null,null,null,null,null,null,null,null,null,null,null,null,null,null,null,null,null,null,null,null,null,null,null,null,null,null,null,null,null,null,null,null,null,null,null,null,null,null,null,null,null,null,null,null,null,null,null,null,null,null,null,null,null,null,138,"A",3,38,"",""]
[null,null,null,null,null,null,null,null,null,null,null,null,null,null,null,null,null,null,null,null,null,null,null,null,null,null,null,null,null,null,null,null,null,null,null,null,null,null,null,null,null,null,null,null,null,null,null,null,null,null,null,null,null,null,null,null,null,null,null,null,null,null,null,null,null,null,null,null,null,null,null,null,null,null,null,null,null,null,null,null,null,null,null,null,139,"A",3,39,"",""]
[null,null,null,null,null,null,null,null,null,null,null,null,null,null,null,null,null,null,null,null,null,null,null,null,null,null,null,null,null,null,null,null,null,null,null,null,null,null,null,null,null,null,null,null,null,null,null,null,null,null,null,null,null,null,null,null,null,null,null,null,null,null,null,null,null,null,null,null,null,null,null,null,null,null,null,null,null,null,null,null,null,null,null,null,140,"A",3,40,"",""]
[null,null,null,null,null,null,null,null,null,null,null,null,null,null,null,null,null,null,null,null,null,null,null,null,null,null,null,null,null,null,null,null,null,null,null,null,null,null,null,null,null,null,null,null,null,null,null,null,null,null,null,null,null,null,null,null,null,null,null,null,null,null,null,null,null,null,null,null,null,null,null,null,null,null,null,null,null,null,null,null,null,null,null,null,141,"A",3,41,"",""]
[null,null,null,null,null,null,null,null,null,null,null,null,null,null,null,null,null,null,null,null,null,null,null,null,null,null,null,null,null,null,null,null,null,null,null,null,null,null,null,null,null,null,null,null,null,null,null,null,null,null,null,null,null,null,null,null,null,null,null,null,null,null,null,null,null,null,null,null,null,null,null,null,null,null,null,null,null,null,null,null,null,null,null,null,142,"A",3,42,"",""]
[null,null,null,null,null,null,null,null,null,null,null,null,null,null,null,null,null,null,null,null,null,null,null,null,null,null,null,null,null,null,null,null,null,null,null,null,null,null,null,null,null,null,null,null,null,null,null,null,null,null,null,null,null,null,null,null,null,null,null,null,null,null,null,null,null,null,null,null,null,null,null,null,null,null,null,null,null,null,null,null,null,null,null,null,143,"A",3,43,"",""]
[null,null,null,null,null,null,null,null,null,null,null,null,null,null,null,null,null,null,null,null,null,null,null,null,null,null,null,null,null,null,null,null,null,null,null,null,null,null,null,null,null,null,null,null,null,null,null,null,null,null,null,null,null,null,null,null,null,null,null,null,null,null,null,null,null,null,null,null,null,null,null,null,null,null,null,null,null,null,null,null,null,null,null,null,144,"A",3,44,"",""]
[null,null,null,null,null,null,null,null,null,null,null,null,null,null,null,null,null,null,null,null,null,null,null,null,null,null,null,null,null,null,null,null,null,null,null,null,null,null,null,null,null,null,null,null,null,null,null,null,null,null,null,null,null,null,null,null,null,null,null,null,null,null,null,null,null,null,null,null,null,null,null,null,null,null,null,null,null,null,null,null,null,null,null,null,145,"A",3,45,"",""]
[null,null,null,null,null,null,null,null,null,null,null,null,null,null,null,null,null,null,null,null,null,null,null,null,null,null,null,null,null,null,null,null,null,null,null,null,null,null,null,null,null,null,null,null,null,null,null,null,null,null,null,null,null,null,null,null,null,null,null,null,null,null,null,null,null,null,null,null,null,null,null,null,null,null,null,null,null,null,null,null,null,null,null,null,146,"A",3,46,"",""]
[null,null,null,null,null,null,null,null,null,null,null,null,null,null,null,null,null,null,null,null,null,null,null,null,null,null,null,null,null,null,null,null,null,null,null,null,null,null,null,null,null,null,null,null,null,null,null,null,null,null,null,null,null,null,null,null,null,null,null,null,null,null,null,null,null,null,null,null,null,null,null,null,null,null,null,null,null,null,null,null,null,null,null,null,147,"A",3,47,"",""]
[null,null,null,null,null,null,null,null,null,null,null,null,null,null,null,null,null,null,null,null,null,null,null,null,null,null,null,null,null,null,null,null,null,null,null,null,null,null,null,null,null,null,null,null,null,null,null,null,null,null,null,null,null,null,null,null,null,null,null,null,null,null,null,null,null,null,null,null,null,null,null,null,null,null,null,null,null,null,null,null,null,null,null,null,148,"A",3,48,"",""]
[null,null,null,null,null,null,null,null,null,null,null,null,null,null,null,null,null,null,null,null,null,null,null,null,null,null,null,null,null,null,null,null,null,null,null,null,null,null,null,null,null,null,null,null,null,null,null,null,null,null,null,null,null,null,null,null,null,null,null,null,null,null,null,null,null,null,null,null,null,null,null,null,null,null,null,null,null,null,null,null,null,null,null,null,149,"A",3,49,"",""]
[null,null,null,null,null,null,null,null,null,null,null,null,null,null,null,null,null,null,null,null,null,null,null,null,null,null,null,null,null,null,null,null,null,null,null,null,null,null,null,null,null,null,null,null,null,null,null,null,null,null,null,null,null,null,null,null,null,null,null,null,null,null,null,null,null,null,null,null,null,null,null,null,null,null,null,null,null,null,null,null,null,null,null,null,150,"A",3,50,"",""]
[null,null,null,null,null,null,null,null,null,null,null,null,null,null,null,null,null,null,null,null,null,null,null,null,null,null,null,null,null,null,null,null,null,null,null,null,null,null,null,null,null,null,null,null,null,null,null,null,null,null,null,null,null,null,null,null,null,null,null,null,null,null,null,null,null,null,null,null,null,null,null,null,null,null,null,null,null,null,null,null,null,null,null,null,151,"A",4,1,{"$f":"F8","v":1},{"$f":"L8","v":1}]
[null,null,null,null,null,null,null,null,null,null,null,null,null,null,null,null,null,null,null,null,null,null,null,null,null,null,null,null,null,null,null,null,null,null,null,null,null,null,null,null,null,null,null,null,null,null,null,null,null,null,null,null,null,null,null,null,null,null,null,null,null,null,null,null,null,null,null,null,null,null,null,null,null,null,null,null,null,null,null,null,null,null,null,null,152,"A",4,2,{"$f":"F9","v":1},{"$f":"L9","v":1}]
[null,null,null,null,null,null,null,null,null,null,null,null,null,null,null,null,null,null,null,null,null,null,null,null,null,null,null,null,null,null,null,null,null,null,null,null,null,null,null,null,null,null,null,null,null,null,null,null,null,null,null,null,null,null,null,null,null,null,null,null,null,null,null,null,null,null,null,null,null,null,null,null,null,null,null,null,null,null,null,null,null,null,null,null,153,"A",4,3,0,0]
[null,null,null,null,null,null,null,null,null,null,null,null,null,null,null,null,null,null,null,null,null,null,null,null,null,null,null,null,null,null,null,null,null,null,null,null,null,null,null,null,null,null,null,null,null,null,null,null,null,null,null,null,null,null,null,null,null,null,null,null,null,null,null,null,null,null,null,null,null,null,null,null,null,null,null,null,null,null,null,null,null,null,null,null,154,"A",4,4,0,0]
[null,null,null,null,null,null,null,null,null,null,null,null,null,null,null,null,null,null,null,null,null,null,null,null,null,null,null,null,null,null,null,null,null,null,null,null,null,null,null,null,null,null,null,null,null,null,null,null,null,null,null,null,null,null,null,null,null,null,null,null,null,null,null,null,null,null,null,null,null,null,null,null,null,null,null,null,null,null,null,null,null,null,null,null,155,"A",4,5,0,0]
[null,null,null,null,null,null,null,null,null,null,null,null,null,null,null,null,null,null,null,null,null,null,null,null,null,null,null,null,null,null,null,null,null,null,null,null,null,null,null,null,null,null,null,null,null,null,null,null,null,null,null,null,null,null,null,null,null,null,null,null,null,null,null,null,null,null,null,null,null,null,null,null,null,null,null,null,null,null,null,null,null,null,null,null,156,"A",4,6,1,1]
[null,null,null,null,null,null,null,null,null,null,null,null,null,null,null,null,null,null,null,null,null,null,null,null,null,null,null,null,null,null,null,null,null,null,null,null,null,null,null,null,null,null,null,null,null,null,null,null,null,null,null,null,null,null,null,null,null,null,null,null,null,null,null,null,null,null,null,null,null,null,null,null,null,null,null,null,null,null,null,null,null,null,null,null,157,"A",4,7,1,1]
[null,null,null,null,null,null,null,null,null,null,null,null,null,null,null,null,null,null,null,null,null,null,null,null,null,null,null,null,null,null,null,null,null,null,null,null,null,null,null,null,null,null,null,null,null,null,null,null,null,null,null,null,null,null,null,null,null,null,null,null,null,null,null,null,null,null,null,null,null,null,null,null,null,null,null,null,null,null,null,null,null,null,null,null,158,"A",4,8,1,1]
[null,null,null,null,null,null,null,null,null,null,null,null,null,null,null,null,null,null,null,null,null,null,null,null,null,null,null,null,null,null,null,null,null,null,null,null,null,null,null,null,null,null,null,null,null,null,null,null,null,null,null,null,null,null,null,null,null,null,null,null,null,null,null,null,null,null,null,null,null,null,null,null,null,null,null,null,null,null,null,null,null,null,null,null,159,"A",4,9,0,0]
[null,null,null,null,null,null,null,null,null,null,null,null,null,null,null,null,null,null,null,null,null,null,null,null,null,null,null,null,null,null,null,null,null,null,null,null,null,null,null,null,null,null,null,null,null,null,null,null,null,null,null,null,null,null,null,null,null,null,null,null,null,null,null,null,null,null,null,null,null,null,null,null,null,null,null,null,null,null,null,null,null,null,null,null,160,"A",4,10,1,1]
[null,null,null,null,null,null,null,null,null,null,null,null,null,null,null,null,null,null,null,null,null,null,null,null,null,null,null,null,null,null,null,null,null,null,null,null,null,null,null,null,null,null,null,null,null,null,null,null,null,null,null,null,null,null,null,null,null,null,null,null,null,null,null,null,null,null,null,null,null,null,null,null,null,null,null,null,null,null,null,null,null,null,null,null,161,"A",4,11,1,1]
[null,null,null,null,null,null,null,null,null,null,null,null,null,null,null,null,null,null,null,null,null,null,null,null,null,null,null,null,null,null,null,null,null,null,null,null,null,null,null,null,null,null,null,null,null,null,null,null,null,null,null,null,null,null,null,null,null,null,null,null,null,null,null,null,null,null,null,null,null,null,null,null,null,null,null,null,null,null,null,null,null,null,null,null,162,"A",4,12,0,0]
[null,null,null,null,null,null,null,null,null,null,null,null,null,null,null,null,null,null,null,null,null,null,null,null,null,null,null,null,null,null,null,null,null,null,null,null,null,null,null,null,null,null,null,null,null,null,null,null,null,null,null,null,null,null,null,null,null,null,null,null,null,null,null,null,null,null,null,null,null,null,null,null,null,null,null,null,null,null,null,null,null,null,null,null,163,"A",4,13,1,1]
[null,null,null,null,null,null,null,null,null,null,null,null,null,null,null,null,null,null,null,null,null,null,null,null,null,null,null,null,null,null,null,null,null,null,null,null,null,null,null,null,null,null,null,null,null,null,null,null,null,null,null,null,null,null,null,null,null,null,null,null,null,null,null,null,null,null,null,null,null,null,null,null,null,null,null,null,null,null,null,null,null,null,null,null,164,"A",4,14,1,1]
[null,null,null,null,null,null,null,null,null,null,null,null,null,null,null,null,null,null,null,null,null,null,null,null,null,null,null,null,null,null,null,null,null,null,null,null,null,null,null,null,null,null,null,null,null,null,null,null,null,null,null,null,null,null,null,null,null,null,null,null,null,null,null,null,null,null,null,null,null,null,null,null,null,null,null,null,null,null,null,null,null,null,null,null,165,"A",4,15,1,1]
[null,null,null,null,null,null,null,null,null,null,null,null,null,null,null,null,null,null,null,null,null,null,null,null,null,null,null,null,null,null,null,null,null,null,null,null,null,null,null,null,null,null,null,null,null,null,null,null,null,null,null,null,null,null,null,null,null,null,null,null,null,null,null,null,null,null,null,null,null,null,null,null,null,null,null,null,null,null,null,null,null,null,null,null,166,"A",4,16,1,1]
[null,null,null,null,null,null,null,null,null,null,null,null,null,null,null,null,null,null,null,null,null,null,null,null,null,null,null,null,null,null,null,null,null,null,null,null,null,null,null,null,null,null,null,null,null,null,null,null,null,null,null,null,null,null,null,null,null,null,null,null,null,null,null,null,null,null,null,null,null,null,null,null,null,null,null,null,null,null,null,null,null,null,null,null,167,"A",4,17,1,1]
[null,null,null,null,null,null,null,null,null,null,null,null,null,null,null,null,null,null,null,null,null,null,null,null,null,null,null,null,null,null,null,null,null,null,null,null,null,null,null,null,null,null,null,null,null,null,null,null,null,null,null,null,null,null,null,null,null,null,null,null,null,null,null,null,null,null,null,null,null,null,null,null,null,null,null,null,null,null,null,null,null,null,null,null,168,"A",4,18,1,1]
[null,null,null,null,null,null,null,null,null,null,null,null,null,null,null,null,null,null,null,null,null,null,null,null,null,null,null,null,null,null,null,null,null,null,null,null,null,null,null,null,null,null,null,null,null,null,null,null,null,null,null,null,null,null,null,null,null,null,null,null,null,null,null,null,null,null,null,null,null,null,null,null,null,null,null,null,null,null,null,null,null,null,null,null,169,"A",4,19,1,1]
[null,null,null,null,null,null,null,null,null,null,null,null,null,null,null,null,null,null,null,null,null,null,null,null,null,null,null,null,null,null,null,null,null,null,null,null,null,null,null,null,null,null,null,null,null,null,null,null,null,null,null,null,null,null,null,null,null,null,null,null,null,null,null,null,null,null,null,null,null,null,null,null,null,null,null,null,null,null,null,null,null,null,null,null,170,"A",4,20,1,1]
[null,null,null,null,null,null,null,null,null,null,null,null,null,null,null,null,null,null,null,null,null,null,null,null,null,null,null,null,null,null,null,null,null,null,null,null,null,null,null,null,null,null,null,null,null,null,null,null,null,null,null,null,null,null,null,null,null,null,null,null,null,null,null,null,null,null,null,null,null,null,null,null,null,null,null,null,null,null,null,null,null,null,null,null,171,"A",4,21,1,1]
[null,null,null,null,null,null,null,null,null,null,null,null,null,null,null,null,null,null,null,null,null,null,null,null,null,null,null,null,null,null,null,null,null,null,null,null,null,null,null,null,null,null,null,null,null,null,null,null,null,null,null,null,null,null,null,null,null,null,null,null,null,null,null,null,null,null,null,null,null,null,null,null,null,null,null,null,null,null,null,null,null,null,null,null,172,"A",4,22,0,0]
[null,null,null,null,null,null,null,null,null,null,null,null,null,null,null,null,null,null,null,null,null,null,null,null,null,null,null,null,null,null,null,null,null,null,null,null,null,null,null,null,null,null,null,null,null,null,null,null,null,null,null,null,null,null,null,null,null,null,null,null,null,null,null,null,null,null,null,null,null,null,null,null,null,null,null,null,null,null,null,null,null,null,null,null,173,"A",4,23,1,1]
[null,null,null,null,null,null,null,null,null,null,null,null,null,null,null,null,null,null,null,null,null,null,null,null,null,null,null,null,null,null,null,null,null,null,null,null,null,null,null,null,null,null,null,null,null,null,null,null,null,null,null,null,null,null,null,null,null,null,null,null,null,null,null,null,null,null,null,null,null,null,null,null,null,null,null,null,null,null,null,null,null,null,null,null,174,"A",4,24,1,1]
[null,null,null,null,null,null,null,null,null,null,null,null,null,null,null,null,null,null,null,null,null,null,null,null,null,null,null,null,null,null,null,null,null,null,null,null,null,null,null,null,null,null,null,null,null,null,null,null,null,null,null,null,null,null,null,null,null,null,null,null,null,null,null,null,null,null,null,null,null,null,null,null,null,null,null,null,null,null,null,null,null,null,null,null,175,"A",4,25,0,0]
[null,null,null,null,null,null,null,null,null,null,null,null,null,null,null,null,null,null,null,null,null,null,null,null,null,null,null,null,null,null,null,null,null,null,null,null,null,null,null,null,null,null,null,null,null,null,null,null,null,null,null,null,null,null,null,null,null,null,null,null,null,null,null,null,null,null,null,null,null,null,null,null,null,null,null,null,null,null,null,null,null,null,null,null,176,"A",4,26,0,0]
[null,null,null,null,null,null,null,null,null,null,null,null,null,null,null,null,null,null,null,null,null,null,null,null,null,null,null,null,null,null,null,null,null,null,null,null,null,null,null,null,null,null,null,null,null,null,null,null,null,null,null,null,null,null,null,null,null,null,null,null,null,null,null,null,null,null,null,null,null,null,null,null,null,null,null,null,null,null,null,null,null,null,null,null,177,"A",4,27,1,1]
[null,null,null,null,null,null,null,null,null,null,null,null,null,null,null,null,null,null,null,null,null,null,null,null,null,null,null,null,null,null,null,null,null,null,null,null,null,null,null,null,null,null,null,null,null,null,null,null,null,null,null,null,null,null,null,null,null,null,null,null,null,null,null,null,null,null,null,null,null,null,null,null,null,null,null,null,null,null,null,null,null,null,null,null,178,"A",4,28,1,1]
[null,null,null,null,null,null,null,null,null,null,null,null,null,null,null,null,null,null,null,null,null,null,null,null,null,null,null,null,null,null,null,null,null,null,null,null,null,null,null,null,null,null,null,null,null,null,null,null,null,null,null,null,null,null,null,null,null,null,null,null,null,null,null,null,null,null,null,null,null,null,null,null,null,null,null,null,null,null,null,null,null,null,null,null,179,"A",4,29,1,1]
[null,null,null,null,null,null,null,null,null,null,null,null,null,null,null,null,null,null,null,null,null,null,null,null,null,null,null,null,null,null,null,null,null,null,null,null,null,null,null,null,null,null,null,null,null,null,null,null,null,null,null,null,null,null,null,null,null,null,null,null,null,null,null,null,null,null,null,null,null,null,null,null,null,null,null,null,null,null,null,null,null,null,null,null,180,"A",4,30,0,0]
[null,null,null,null,null,null,null,null,null,null,null,null,null,null,null,null,null,null,null,null,null,null,null,null,null,null,null,null,null,null,null,null,null,null,null,null,null,null,null,null,null,null,null,null,null,null,null,null,null,null,null,null,null,null,null,null,null,null,null,null,null,null,null,null,null,null,null,null,null,null,null,null,null,null,null,null,null,null,null,null,null,null,null,null,181,"A",4,31,"",""]
[null,null,null,null,null,null,null,null,null,null,null,null,null,null,null,null,null,null,null,null,null,null,null,null,null,null,null,null,null,null,null,null,null,null,null,null,null,null,null,null,null,null,null,null,null,null,null,null,null,null,null,null,null,null,null,null,null,null,null,null,null,null,null,null,null,null,null,null,null,null,null,null,null,null,null,null,null,null,null,null,null,null,null,null,182,"A",4,32,"",""]
[null,null,null,null,null,null,null,null,null,null,null,null,null,null,null,null,null,null,null,null,null,null,null,null,null,null,null,null,null,null,null,null,null,null,null,null,null,null,null,null,null,null,null,null,null,null,null,null,null,null,null,null,null,null,null,null,null,null,null,null,null,null,null,null,null,null,null,null,null,null,null,null,null,null,null,null,null,null,null,null,null,null,null,null,183,"A",4,33,"",""]
[null,null,null,null,null,null,null,null,null,null,null,null,null,null,null,null,null,null,null,null,null,null,null,null,null,null,null,null,null,null,null,null,null,null,null,null,null,null,null,null,null,null,null,null,null,null,null,null,null,null,null,null,null,null,null,null,null,null,null,null,null,null,null,null,null,null,null,null,null,null,null,null,null,null,null,null,null,null,null,null,null,null,null,null,184,"A",4,34,"",""]
[null,null,null,null,null,null,null,null,null,null,null,null,null,null,null,null,null,null,null,null,null,null,null,null,null,null,null,null,null,null,null,null,null,null,null,null,null,null,null,null,null,null,null,null,null,null,null,null,null,null,null,null,null,null,null,null,null,null,null,null,null,null,null,null,null,null,null,null,null,null,null,null,null,null,null,null,null,null,null,null,null,null,null,null,185,"A",4,35,"",""]
[null,null,null,null,null,null,null,null,null,null,null,null,null,null,null,null,null,null,null,null,null,null,null,null,null,null,null,null,null,null,null,null,null,null,null,null,null,null,null,null,null,null,null,null,null,null,null,null,null,null,null,null,null,null,null,null,null,null,null,null,null,null,null,null,null,null,null,null,null,null,null,null,null,null,null,null,null,null,null,null,null,null,null,null,186,"A",4,36,"",""]
[null,null,null,null,null,null,null,null,null,null,null,null,null,null,null,null,null,null,null,null,null,null,null,null,null,null,null,null,null,null,null,null,null,null,null,null,null,null,null,null,null,null,null,null,null,null,null,null,null,null,null,null,null,null,null,null,null,null,null,null,null,null,null,null,null,null,null,null,null,null,null,null,null,null,null,null,null,null,null,null,null,null,null,null,187,"A",4,37,"",""]
[null,null,null,null,null,null,null,null,null,null,null,null,null,null,null,null,null,null,null,null,null,null,null,null,null,null,null,null,null,null,null,null,null,null,null,null,null,null,null,null,null,null,null,null,null,null,null,null,null,null,null,null,null,null,null,null,null,null,null,null,null,null,null,null,null,null,null,null,null,null,null,null,null,null,null,null,null,null,null,null,null,null,null,null,188,"A",4,38,"",""]
[null,null,null,null,null,null,null,null,null,null,null,null,null,null,null,null,null,null,null,null,null,null,null,null,null,null,null,null,null,null,null,null,null,null,null,null,null,null,null,null,null,null,null,null,null,null,null,null,null,null,null,null,null,null,null,null,null,null,null,null,null,null,null,null,null,null,null,null,null,null,null,null,null,null,null,null,null,null,null,null,null,null,null,null,189,"A",4,39,"",""]
[null,null,null,null,null,null,null,null,null,null,null,null,null,null,null,null,null,null,null,null,null,null,null,null,null,null,null,null,null,null,null,null,null,null,null,null,null,null,null,null,null,null,null,null,null,null,null,null,null,null,null,null,null,null,null,null,null,null,null,null,null,null,null,null,null,null,null,null,null,null,null,null,null,null,null,null,null,null,null,null,null,null,null,null,190,"A",4,40,"",""]
[null,null,null,null,null,null,null,null,null,null,null,null,null,null,null,null,null,null,null,null,null,null,null,null,null,null,null,null,null,null,null,null,null,null,null,null,null,null,null,null,null,null,null,null,null,null,null,null,null,null,null,null,null,null,null,null,null,null,null,null,null,null,null,null,null,null,null,null,null,null,null,null,null,null,null,null,null,null,null,null,null,null,null,null,191,"A",4,41,"",""]
[null,null,null,null,null,null,null,null,null,null,null,null,null,null,null,null,null,null,null,null,null,null,null,null,null,null,null,null,null,null,null,null,null,null,null,null,null,null,null,null,null,null,null,null,null,null,null,null,null,null,null,null,null,null,null,null,null,null,null,null,null,null,null,null,null,null,null,null,null,null,null,null,null,null,null,null,null,null,null,null,null,null,null,null,192,"A",4,42,"",""]
[null,null,null,null,null,null,null,null,null,null,null,null,null,null,null,null,null,null,null,null,null,null,null,null,null,null,null,null,null,null,null,null,null,null,null,null,null,null,null,null,null,null,null,null,null,null,null,null,null,null,null,null,null,null,null,null,null,null,null,null,null,null,null,null,null,null,null,null,null,null,null,null,null,null,null,null,null,null,null,null,null,null,null,null,193,"A",4,43,"",""]
[null,null,null,null,null,null,null,null,null,null,null,null,null,null,null,null,null,null,null,null,null,null,null,null,null,null,null,null,null,null,null,null,null,null,null,null,null,null,null,null,null,null,null,null,null,null,null,null,null,null,null,null,null,null,null,null,null,null,null,null,null,null,null,null,null,null,null,null,null,null,null,null,null,null,null,null,null,null,null,null,null,null,null,null,194,"A",4,44,"",""]
[null,null,null,null,null,null,null,null,null,null,null,null,null,null,null,null,null,null,null,null,null,null,null,null,null,null,null,null,null,null,null,null,null,null,null,null,null,null,null,null,null,null,null,null,null,null,null,null,null,null,null,null,null,null,null,null,null,null,null,null,null,null,null,null,null,null,null,null,null,null,null,null,null,null,null,null,null,null,null,null,null,null,null,null,195,"A",4,45,"",""]
[null,null,null,null,null,null,null,null,null,null,null,null,null,null,null,null,null,null,null,null,null,null,null,null,null,null,null,null,null,null,null,null,null,null,null,null,null,null,null,null,null,null,null,null,null,null,null,null,null,null,null,null,null,null,null,null,null,null,null,null,null,null,null,null,null,null,null,null,null,null,null,null,null,null,null,null,null,null,null,null,null,null,null,null,196,"A",4,46,"",""]
[null,null,null,null,null,null,null,null,null,null,null,null,null,null,null,null,null,null,null,null,null,null,null,null,null,null,null,null,null,null,null,null,null,null,null,null,null,null,null,null,null,null,null,null,null,null,null,null,null,null,null,null,null,null,null,null,null,null,null,null,null,null,null,null,null,null,null,null,null,null,null,null,null,null,null,null,null,null,null,null,null,null,null,null,197,"A",4,47,"",""]
[null,null,null,null,null,null,null,null,null,null,null,null,null,null,null,null,null,null,null,null,null,null,null,null,null,null,null,null,null,null,null,null,null,null,null,null,null,null,null,null,null,null,null,null,null,null,null,null,null,null,null,null,null,null,null,null,null,null,null,null,null,null,null,null,null,null,null,null,null,null,null,null,null,null,null,null,null,null,null,null,null,null,null,null,198,"A",4,48,"",""]
[null,null,null,null,null,null,null,null,null,null,null,null,null,null,null,null,null,null,null,null,null,null,null,null,null,null,null,null,null,null,null,null,null,null,null,null,null,null,null,null,null,null,null,null,null,null,null,null,null,null,null,null,null,null,null,null,null,null,null,null,null,null,null,null,null,null,null,null,null,null,null,null,null,null,null,null,null,null,null,null,null,null,null,null,199,"A",4,49,"",""]
[null,null,null,null,null,null,null,null,null,null,null,null,null,null,null,null,null,null,null,null,null,null,null,null,null,null,null,null,null,null,null,null,null,null,null,null,null,null,null,null,null,null,null,null,null,null,null,null,null,null,null,null,null,null,null,null,null,null,null,null,null,null,null,null,null,null,null,null,null,null,null,null,null,null,null,null,null,null,null,null,null,null,null,null,200,"A",4,50,"",""]
[null,null,null,null,null,null,null,null,null,null,null,null,null,null,null,null,null,null,null,null,null,null,null,null,null,null,null,null,null,null,null,null,null,null,null,null,null,null,null,null,null,null,null,null,null,null,null,null,null,null,null,null,null,null,null,null,null,null,null,null,null,null,null,null,null,null,null,null,null,null,null,null,null,null,null,null,null,null,null,null,null,null,null,null,201,"A",5,1,{"$f":"G8","v":1},{"$f":"L8","v":1}]
[null,null,null,null,null,null,null,null,null,null,null,null,null,null,null,null,null,null,null,null,null,null,null,null,null,null,null,null,null,null,null,null,null,null,null,null,null,null,null,null,null,null,null,null,null,null,null,null,null,null,null,null,null,null,null,null,null,null,null,null,null,null,null,null,null,null,null,null,null,null,null,null,null,null,null,null,null,null,null,null,null,null,null,null,202,"A",5,2,{"$f":"G9","v":1},{"$f":"L9","v":1}]
[null,null,null,null,null,null,null,null,null,null,null,null,null,null,null,null,null,null,null,null,null,null,null,null,null,null,null,null,null,null,null,null,null,null,null,null,null,null,null,null,null,null,null,null,null,null,null,null,null,null,null,null,null,null,null,null,null,null,null,null,null,null,null,null,null,null,null,null,null,null,null,null,null,null,null,null,null,null,null,null,null,null,null,null,203,"A",5,3,0,0]
[null,null,null,null,null,null,null,null,null,null,null,null,null,null,null,null,null,null,null,null,null,null,null,null,null,null,null,null,null,null,null,null,null,null,null,null,null,null,null,null,null,null,null,null,null,null,null,null,null,null,null,null,null,null,null,null,null,null,null,null,null,null,null,null,null,null,null,null,null,null,null,null,null,null,null,null,null,null,null,null,null,null,null,null,204,"A",5,4,0,0]
[null,null,null,null,null,null,null,null,null,null,null,null,null,null,null,null,null,null,null,null,null,null,null,null,null,null,null,null,null,null,null,null,null,null,null,null,null,null,null,null,null,null,null,null,null,null,null,null,null,null,null,null,null,null,null,null,null,null,null,null,null,null,null,null,null,null,null,null,null,null,null,null,null,null,null,null,null,null,null,null,null,null,null,null,205,"A",5,5,0,0]
[null,null,null,null,null,null,null,null,null,null,null,null,null,null,null,null,null,null,null,null,null,null,null,null,null,null,null,null,null,null,null,null,null,null,null,null,null,null,null,null,null,null,null,null,null,null,null,null,null,null,null,null,null,null,null,null,null,null,null,null,null,null,null,null,null,null,null,null,null,null,null,null,null,null,null,null,null,null,null,null,null,null,null,null,206,"A",5,6,1,1]
[null,null,null,null,null,null,null,null,null,null,null,null,null,null,null,null,null,null,null,null,null,null,null,null,null,null,null,null,null,null,null,null,null,null,null,null,null,null,null,null,null,null,null,null,null,null,null,null,null,null,null,null,null,null,null,null,null,null,null,null,null,null,null,null,null,null,null,null,null,null,null,null,null,null,null,null,null,null,null,null,null,null,null,null,207,"A",5,7,1,1]
[null,null,null,null,null,null,null,null,null,null,null,null,null,null,null,null,null,null,null,null,null,null,null,null,null,null,null,null,null,null,null,null,null,null,null,null,null,null,null,null,null,null,null,null,null,null,null,null,null,null,null,null,null,null,null,null,null,null,null,null,null,null,null,null,null,null,null,null,null,null,null,null,null,null,null,null,null,null,null,null,null,null,null,null,208,"A",5,8,1,1]
[null,null,null,null,null,null,null,null,null,null,null,null,null,null,null,null,null,null,null,null,null,null,null,null,null,null,null,null,null,null,null,null,null,null,null,null,null,null,null,null,null,null,null,null,null,null,null,null,null,null,null,null,null,null,null,null,null,null,null,null,null,null,null,null,null,null,null,null,null,null,null,null,null,null,null,null,null,null,null,null,null,null,null,null,209,"A",5,9,0,0]
[null,null,null,null,null,null,null,null,null,null,null,null,null,null,null,null,null,null,null,null,null,null,null,null,null,null,null,null,null,null,null,null,null,null,null,null,null,null,null,null,null,null,null,null,null,null,null,null,null,null,null,null,null,null,null,null,null,null,null,null,null,null,null,null,null,null,null,null,null,null,null,null,null,null,null,null,null,null,null,null,null,null,null,null,210,"A",5,10,1,1]
[null,null,null,null,null,null,null,null,null,null,null,null,null,null,null,null,null,null,null,null,null,null,null,null,null,null,null,null,null,null,null,null,null,null,null,null,null,null,null,null,null,null,null,null,null,null,null,null,null,null,null,null,null,null,null,null,null,null,null,null,null,null,null,null,null,null,null,null,null,null,null,null,null,null,null,null,null,null,null,null,null,null,null,null,211,"A",5,11,1,1]
[null,null,null,null,null,null,null,null,null,null,null,null,null,null,null,null,null,null,null,null,null,null,null,null,null,null,null,null,null,null,null,null,null,null,null,null,null,null,null,null,null,null,null,null,null,null,null,null,null,null,null,null,null,null,null,null,null,null,null,null,null,null,null,null,null,null,null,null,null,null,null,null,null,null,null,null,null,null,null,null,null,null,null,null,212,"A",5,12,0,0]
[null,null,null,null,null,null,null,null,null,null,null,null,null,null,null,null,null,null,null,null,null,null,null,null,null,null,null,null,null,null,null,null,null,null,null,null,null,null,null,null,null,null,null,null,null,null,null,null,null,null,null,null,null,null,null,null,null,null,null,null,null,null,null,null,null,null,null,null,null,null,null,null,null,null,null,null,null,null,null,null,null,null,null,null,213,"A",5,13,1,1]
[null,null,null,null,null,null,null,null,null,null,null,null,null,null,null,null,null,null,null,null,null,null,null,null,null,null,null,null,null,null,null,null,null,null,null,null,null,null,null,null,null,null,null,null,null,null,null,null,null,null,null,null,null,null,null,null,null,null,null,null,null,null,null,null,null,null,null,null,null,null,null,null,null,null,null,null,null,null,null,null,null,null,null,null,214,"A",5,14,1,1]
[null,null,null,null,null,null,null,null,null,null,null,null,null,null,null,null,null,null,null,null,null,null,null,null,null,null,null,null,null,null,null,null,null,null,null,null,null,null,null,null,null,null,null,null,null,null,null,null,null,null,null,null,null,null,null,null,null,null,null,null,null,null,null,null,null,null,null,null,null,null,null,null,null,null,null,null,null,null,null,null,null,null,null,null,215,"A",5,15,1,1]
[null,null,null,null,null,null,null,null,null,null,null,null,null,null,null,null,null,null,null,null,null,null,null,null,null,null,null,null,null,null,null,null,null,null,null,null,null,null,null,null,null,null,null,null,null,null,null,null,null,null,null,null,null,null,null,null,null,null,null,null,null,null,null,null,null,null,null,null,null,null,null,null,null,null,null,null,null,null,null,null,null,null,null,null,216,"A",5,16,1,1]
[null,null,null,null,null,null,null,null,null,null,null,null,null,null,null,null,null,null,null,null,null,null,null,null,null,null,null,null,null,null,null,null,null,null,null,null,null,null,null,null,null,null,null,null,null,null,null,null,null,null,null,null,null,null,null,null,null,null,null,null,null,null,null,null,null,null,null,null,null,null,null,null,null,null,null,null,null,null,null,null,null,null,null,null,217,"A",5,17,1,1]
[null,null,null,null,null,null,null,null,null,null,null,null,null,null,null,null,null,null,null,null,null,null,null,null,null,null,null,null,null,null,null,null,null,null,null,null,null,null,null,null,null,null,null,null,null,null,null,null,null,null,null,null,null,null,null,null,null,null,null,null,null,null,null,null,null,null,null,null,null,null,null,null,null,null,null,null,null,null,null,null,null,null,null,null,218,"A",5,18,1,1]
[null,null,null,null,null,null,null,null,null,null,null,null,null,null,null,null,null,null,null,null,null,null,null,null,null,null,null,null,null,null,null,null,null,null,null,null,null,null,null,null,null,null,null,null,null,null,null,null,null,null,null,null,null,null,null,null,null,null,null,null,null,null,null,null,null,null,null,null,null,null,null,null,null,null,null,null,null,null,null,null,null,null,null,null,219,"A",5,19,1,1]
[null,null,null,null,null,null,null,null,null,null,null,null,null,null,null,null,null,null,null,null,null,null,null,null,null,null,null,null,null,null,null,null,null,null,null,null,null,null,null,null,null,null,null,null,null,null,null,null,null,null,null,null,null,null,null,null,null,null,null,null,null,null,null,null,null,null,null,null,null,null,null,null,null,null,null,null,null,null,null,null,null,null,null,null,220,"A",5,20,1,1]
[null,null,null,null,null,null,null,null,null,null,null,null,null,null,null,null,null,null,null,null,null,null,null,null,null,null,null,null,null,null,null,null,null,null,null,null,null,null,null,null,null,null,null,null,null,null,null,null,null,null,null,null,null,null,null,null,null,null,null,null,null,null,null,null,null,null,null,null,null,null,null,null,null,null,null,null,null,null,null,null,null,null,null,null,221,"A",5,21,0,1]
[null,null,null,null,null,null,null,null,null,null,null,null,null,null,null,null,null,null,null,null,null,null,null,null,null,null,null,null,null,null,null,null,null,null,null,null,null,null,null,null,null,null,null,null,null,null,null,null,null,null,null,null,null,null,null,null,null,null,null,null,null,null,null,null,null,null,null,null,null,null,null,null,null,null,null,null,null,null,null,null,null,null,null,null,222,"A",5,22,1,0]
[null,null,null,null,null,null,null,null,null,null,null,null,null,null,null,null,null,null,null,null,null,null,null,null,null,null,null,null,null,null,null,null,null,null,null,null,null,null,null,null,null,null,null,null,null,null,null,null,null,null,null,null,null,null,null,null,null,null,null,null,null,null,null,null,null,null,null,null,null,null,null,null,null,null,null,null,null,null,null,null,null,null,null,null,223,"A",5,23,1,1]
[null,null,null,null,null,null,null,null,null,null,null,null,null,null,null,null,null,null,null,null,null,null,null,null,null,null,null,null,null,null,null,null,null,null,null,null,null,null,null,null,null,null,null,null,null,null,null,null,null,null,null,null,null,null,null,null,null,null,null,null,null,null,null,null,null,null,null,null,null,null,null,null,null,null,null,null,null,null,null,null,null,null,null,null,224,"A",5,24,1,1]
[null,null,null,null,null,null,null,null,null,null,null,null,null,null,null,null,null,null,null,null,null,null,null,null,null,null,null,null,null,null,null,null,null,null,null,null,null,null,null,null,null,null,null,null,null,null,null,null,null,null,null,null,null,null,null,null,null,null,null,null,null,null,null,null,null,null,null,null,null,null,null,null,null,null,null,null,null,null,null,null,null,null,null,null,225,"A",5,25,0,0]
[null,null,null,null,null,null,null,null,null,null,null,null,null,null,null,null,null,null,null,null,null,null,null,null,null,null,null,null,null,null,null,null,null,null,null,null,null,null,null,null,null,null,null,null,null,null,null,null,null,null,null,null,null,null,null,null,null,null,null,null,null,null,null,null,null,null,null,null,null,null,null,null,null,null,null,null,null,null,null,null,null,null,null,null,226,"A",5,26,0,0]
[null,null,null,null,null,null,null,null,null,null,null,null,null,null,null,null,null,null,null,null,null,null,null,null,null,null,null,null,null,null,null,null,null,null,null,null,null,null,null,null,null,null,null,null,null,null,null,null,null,null,null,null,null,null,null,null,null,null,null,null,null,null,null,null,null,null,null,null,null,null,null,null,null,null,null,null,null,null,null,null,null,null,null,null,227,"A",5,27,1,1]
[null,null,null,null,null,null,null,null,null,null,null,null,null,null,null,null,null,null,null,null,null,null,null,null,null,null,null,null,null,null,null,null,null,null,null,null,null,null,null,null,null,null,null,null,null,null,null,null,null,null,null,null,null,null,null,null,null,null,null,null,null,null,null,null,null,null,null,null,null,null,null,null,null,null,null,null,null,null,null,null,null,null,null,null,228,"A",5,28,1,1]
[null,null,null,null,null,null,null,null,null,null,null,null,null,null,null,null,null,null,null,null,null,null,null,null,null,null,null,null,null,null,null,null,null,null,null,null,null,null,null,null,null,null,null,null,null,null,null,null,null,null,null,null,null,null,null,null,null,null,null,null,null,null,null,null,null,null,null,null,null,null,null,null,null,null,null,null,null,null,null,null,null,null,null,null,229,"A",5,29,1,1]
[null,null,null,null,null,null,null,null,null,null,null,null,null,null,null,null,null,null,null,null,null,null,null,null,null,null,null,null,null,null,null,null,null,null,null,null,null,null,null,null,null,null,null,null,null,null,null,null,null,null,null,null,null,null,null,null,null,null,null,null,null,null,null,null,null,null,null,null,null,null,null,null,null,null,null,null,null,null,null,null,null,null,null,null,230,"A",5,30,0,0]
[null,null,null,null,null,null,null,null,null,null,null,null,null,null,null,null,null,null,null,null,null,null,null,null,null,null,null,null,null,null,null,null,null,null,null,null,null,null,null,null,null,null,null,null,null,null,null,null,null,null,null,null,null,null,null,null,null,null,null,null,null,null,null,null,null,null,null,null,null,null,null,null,null,null,null,null,null,null,null,null,null,null,null,null,231,"A",5,31,"",""]
[null,null,null,null,null,null,null,null,null,null,null,null,null,null,null,null,null,null,null,null,null,null,null,null,null,null,null,null,null,null,null,null,null,null,null,null,null,null,null,null,null,null,null,null,null,null,null,null,null,null,null,null,null,null,null,null,null,null,null,null,null,null,null,null,null,null,null,null,null,null,null,null,null,null,null,null,null,null,null,null,null,null,null,null,232,"A",5,32,"",""]
[null,null,null,null,null,null,null,null,null,null,null,null,null,null,null,null,null,null,null,null,null,null,null,null,null,null,null,null,null,null,null,null,null,null,null,null,null,null,null,null,null,null,null,null,null,null,null,null,null,null,null,null,null,null,null,null,null,null,null,null,null,null,null,null,null,null,null,null,null,null,null,null,null,null,null,null,null,null,null,null,null,null,null,null,233,"A",5,33,"",""]
[null,null,null,null,null,null,null,null,null,null,null,null,null,null,null,null,null,null,null,null,null,null,null,null,null,null,null,null,null,null,null,null,null,null,null,null,null,null,null,null,null,null,null,null,null,null,null,null,null,null,null,null,null,null,null,null,null,null,null,null,null,null,null,null,null,null,null,null,null,null,null,null,null,null,null,null,null,null,null,null,null,null,null,null,234,"A",5,34,"",""]
[null,null,null,null,null,null,null,null,null,null,null,null,null,null,null,null,null,null,null,null,null,null,null,null,null,null,null,null,null,null,null,null,null,null,null,null,null,null,null,null,null,null,null,null,null,null,null,null,null,null,null,null,null,null,null,null,null,null,null,null,null,null,null,null,null,null,null,null,null,null,null,null,null,null,null,null,null,null,null,null,null,null,null,null,235,"A",5,35,"",""]
[null,null,null,null,null,null,null,null,null,null,null,null,null,null,null,null,null,null,null,null,null,null,null,null,null,null,null,null,null,null,null,null,null,null,null,null,null,null,null,null,null,null,null,null,null,null,null,null,null,null,null,null,null,null,null,null,null,null,null,null,null,null,null,null,null,null,null,null,null,null,null,null,null,null,null,null,null,null,null,null,null,null,null,null,236,"A",5,36,"",""]
[null,null,null,null,null,null,null,null,null,null,null,null,null,null,null,null,null,null,null,null,null,null,null,null,null,null,null,null,null,null,null,null,null,null,null,null,null,null,null,null,null,null,null,null,null,null,null,null,null,null,null,null,null,null,null,null,null,null,null,null,null,null,null,null,null,null,null,null,null,null,null,null,null,null,null,null,null,null,null,null,null,null,null,null,237,"A",5,37,"",""]
[null,null,null,null,null,null,null,null,null,null,null,null,null,null,null,null,null,null,null,null,null,null,null,null,null,null,null,null,null,null,null,null,null,null,null,null,null,null,null,null,null,null,null,null,null,null,null,null,null,null,null,null,null,null,null,null,null,null,null,null,null,null,null,null,null,null,null,null,null,null,null,null,null,null,null,null,null,null,null,null,null,null,null,null,238,"A",5,38,"",""]
[null,null,null,null,null,null,null,null,null,null,null,null,null,null,null,null,null,null,null,null,null,null,null,null,null,null,null,null,null,null,null,null,null,null,null,null,null,null,null,null,null,null,null,null,null,null,null,null,null,null,null,null,null,null,null,null,null,null,null,null,null,null,null,null,null,null,null,null,null,null,null,null,null,null,null,null,null,null,null,null,null,null,null,null,239,"A",5,39,"",""]
[null,null,null,null,null,null,null,null,null,null,null,null,null,null,null,null,null,null,null,null,null,null,null,null,null,null,null,null,null,null,null,null,null,null,null,null,null,null,null,null,null,null,null,null,null,null,null,null,null,null,null,null,null,null,null,null,null,null,null,null,null,null,null,null,null,null,null,null,null,null,null,null,null,null,null,null,null,null,null,null,null,null,null,null,240,"A",5,40,"",""]
[null,null,null,null,null,null,null,null,null,null,null,null,null,null,null,null,null,null,null,null,null,null,null,null,null,null,null,null,null,null,null,null,null,null,null,null,null,null,null,null,null,null,null,null,null,null,null,null,null,null,null,null,null,null,null,null,null,null,null,null,null,null,null,null,null,null,null,null,null,null,null,null,null,null,null,null,null,null,null,null,null,null,null,null,241,"A",5,41,"",""]
[null,null,null,null,null,null,null,null,null,null,null,null,null,null,null,null,null,null,null,null,null,null,null,null,null,null,null,null,null,null,null,null,null,null,null,null,null,null,null,null,null,null,null,null,null,null,null,null,null,null,null,null,null,null,null,null,null,null,null,null,null,null,null,null,null,null,null,null,null,null,null,null,null,null,null,null,null,null,null,null,null,null,null,null,242,"A",5,42,"",""]
[null,null,null,null,null,null,null,null,null,null,null,null,null,null,null,null,null,null,null,null,null,null,null,null,null,null,null,null,null,null,null,null,null,null,null,null,null,null,null,null,null,null,null,null,null,null,null,null,null,null,null,null,null,null,null,null,null,null,null,null,null,null,null,null,null,null,null,null,null,null,null,null,null,null,null,null,null,null,null,null,null,null,null,null,243,"A",5,43,"",""]
[null,null,null,null,null,null,null,null,null,null,null,null,null,null,null,null,null,null,null,null,null,null,null,null,null,null,null,null,null,null,null,null,null,null,null,null,null,null,null,null,null,null,null,null,null,null,null,null,null,null,null,null,null,null,null,null,null,null,null,null,null,null,null,null,null,null,null,null,null,null,null,null,null,null,null,null,null,null,null,null,null,null,null,null,244,"A",5,44,"",""]
[null,null,null,null,null,null,null,null,null,null,null,null,null,null,null,null,null,null,null,null,null,null,null,null,null,null,null,null,null,null,null,null,null,null,null,null,null,null,null,null,null,null,null,null,null,null,null,null,null,null,null,null,null,null,null,null,null,null,null,null,null,null,null,null,null,null,null,null,null,null,null,null,null,null,null,null,null,null,null,null,null,null,null,null,245,"A",5,45,"",""]
[null,null,null,null,null,null,null,null,null,null,null,null,null,null,null,null,null,null,null,null,null,null,null,null,null,null,null,null,null,null,null,null,null,null,null,null,null,null,null,null,null,null,null,null,null,null,null,null,null,null,null,null,null,null,null,null,null,null,null,null,null,null,null,null,null,null,null,null,null,null,null,null,null,null,null,null,null,null,null,null,null,null,null,null,246,"A",5,46,"",""]
[null,null,null,null,null,null,null,null,null,null,null,null,null,null,null,null,null,null,null,null,null,null,null,null,null,null,null,null,null,null,null,null,null,null,null,null,null,null,null,null,null,null,null,null,null,null,null,null,null,null,null,null,null,null,null,null,null,null,null,null,null,null,null,null,null,null,null,null,null,null,null,null,null,null,null,null,null,null,null,null,null,null,null,null,247,"A",5,47,"",""]
[null,null,null,null,null,null,null,null,null,null,null,null,null,null,null,null,null,null,null,null,null,null,null,null,null,null,null,null,null,null,null,null,null,null,null,null,null,null,null,null,null,null,null,null,null,null,null,null,null,null,null,null,null,null,null,null,null,null,null,null,null,null,null,null,null,null,null,null,null,null,null,null,null,null,null,null,null,null,null,null,null,null,null,null,248,"A",5,48,"",""]
[null,null,null,null,null,null,null,null,null,null,null,null,null,null,null,null,null,null,null,null,null,null,null,null,null,null,null,null,null,null,null,null,null,null,null,null,null,null,null,null,null,null,null,null,null,null,null,null,null,null,null,null,null,null,null,null,null,null,null,null,null,null,null,null,null,null,null,null,null,null,null,null,null,null,null,null,null,null,null,null,null,null,null,null,249,"A",5,49,"",""]
[null,null,null,null,null,null,null,null,null,null,null,null,null,null,null,null,null,null,null,null,null,null,null,null,null,null,null,null,null,null,null,null,null,null,null,null,null,null,null,null,null,null,null,null,null,null,null,null,null,null,null,null,null,null,null,null,null,null,null,null,null,null,null,null,null,null,null,null,null,null,null,null,null,null,null,null,null,null,null,null,null,null,null,null,250,"A",5,50,"",""]
[null,null,null,null,null,null,null,null,null,null,null,null,null,null,null,null,null,null,null,null,null,null,null,null,null,null,null,null,null,null,null,null,null,null,null,null,null,null,null,null,null,null,null,null,null,null,null,null,null,null,null,null,null,null,null,null,null,null,null,null,null,null,null,null,null,null,null,null,null,null,null,null,null,null,null,null,null,null,null,null,null,null,null,null,251,"A",6,1,{"$f":"H8","v":1},{"$f":"L8","v":1}]
[null,null,null,null,null,null,null,null,null,null,null,null,null,null,null,null,null,null,null,null,null,null,null,null,null,null,null,null,null,null,null,null,null,null,null,null,null,null,null,null,null,null,null,null,null,null,null,null,null,null,null,null,null,null,null,null,null,null,null,null,null,null,null,null,null,null,null,null,null,null,null,null,null,null,null,null,null,null,null,null,null,null,null,null,252,"A",6,2,{"$f":"H9","v":1},{"$f":"L9","v":1}]
[null,null,null,null,null,null,null,null,null,null,null,null,null,null,null,null,null,null,null,null,null,null,null,null,null,null,null,null,null,null,null,null,null,null,null,null,null,null,null,null,null,null,null,null,null,null,null,null,null,null,null,null,null,null,null,null,null,null,null,null,null,null,null,null,null,null,null,null,null,null,null,null,null,null,null,null,null,null,null,null,null,null,null,null,253,"A",6,3,0,0]
[null,null,null,null,null,null,null,null,null,null,null,null,null,null,null,null,null,null,null,null,null,null,null,null,null,null,null,null,null,null,null,null,null,null,null,null,null,null,null,null,null,null,null,null,null,null,null,null,null,null,null,null,null,null,null,null,null,null,null,null,null,null,null,null,null,null,null,null,null,null,null,null,null,null,null,null,null,null,null,null,null,null,null,null,254,"A",6,4,0,0]
[null,null,null,null,null,null,null,null,null,null,null,null,null,null,null,null,null,null,null,null,null,null,null,null,null,null,null,null,null,null,null,null,null,null,null,null,null,null,null,null,null,null,null,null,null,null,null,null,null,null,null,null,null,null,null,null,null,null,null,null,null,null,null,null,null,null,null,null,null,null,null,null,null,null,null,null,null,null,null,null,null,null,null,null,255,"A",6,5,0,0]
[null,null,null,null,null,null,null,null,null,null,null,null,null,null,null,null,null,null,null,null,null,null,null,null,null,null,null,null,null,null,null,null,null,null,null,null,null,null,null,null,null,null,null,null,null,null,null,null,null,null,null,null,null,null,null,null,null,null,null,null,null,null,null,null,null,null,null,null,null,null,null,null,null,null,null,null,null,null,null,null,null,null,null,null,256,"A",6,6,0,1]
[null,null,null,null,null,null,null,null,null,null,null,null,null,null,null,null,null,null,null,null,null,null,null,null,null,null,null,null,null,null,null,null,null,null,null,null,null,null,null,null,null,null,null,null,null,null,null,null,null,null,null,null,null,null,null,null,null,null,null,null,null,null,null,null,null,null,null,null,null,null,null,null,null,null,null,null,null,null,null,null,null,null,null,null,257,"A",6,7,1,1]
[null,null,null,null,null,null,null,null,null,null,null,null,null,null,null,null,null,null,null,null,null,null,null,null,null,null,null,null,null,null,null,null,null,null,null,null,null,null,null,null,null,null,null,null,null,null,null,null,null,null,null,null,null,null,null,null,null,null,null,null,null,null,null,null,null,null,null,null,null,null,null,null,null,null,null,null,null,null,null,null,null,null,null,null,258,"A",6,8,1,1]
[null,null,null,null,null,null,null,null,null,null,null,null,null,null,null,null,null,null,null,null,null,null,null,null,null,null,null,null,null,null,null,null,null,null,null,null,null,null,null,null,null,null,null,null,null,null,null,null,null,null,null,null,null,null,null,null,null,null,null,null,null,null,null,null,null,null,null,null,null,null,null,null,null,null,null,null,null,null,null,null,null,null,null,null,259,"A",6,9,0,0]
[null,null,null,null,null,null,null,null,null,null,null,null,null,null,null,null,null,null,null,null,null,null,null,null,null,null,null,null,null,null,null,null,null,null,null,null,null,null,null,null,null,null,null,null,null,null,null,null,null,null,null,null,null,null,null,null,null,null,null,null,null,null,null,null,null,null,null,null,null,null,null,null,null,null,null,null,null,null,null,null,null,null,null,null,260,"A",6,10,1,1]
[null,null,null,null,null,null,null,null,null,null,null,null,null,null,null,null,null,null,null,null,null,null,null,null,null,null,null,null,null,null,null,null,null,null,null,null,null,null,null,null,null,null,null,null,null,null,null,null,null,null,null,null,null,null,null,null,null,null,null,null,null,null,null,null,null,null,null,null,null,null,null,null,null,null,null,null,null,null,null,null,null,null,null,null,261,"A",6,11,1,1]
[null,null,null,null,null,null,null,null,null,null,null,null,null,null,null,null,null,null,null,null,null,null,null,null,null,null,null,null,null,null,null,null,null,null,null,null,null,null,null,null,null,null,null,null,null,null,null,null,null,null,null,null,null,null,null,null,null,null,null,null,null,null,null,null,null,null,null,null,null,null,null,null,null,null,null,null,null,null,null,null,null,null,null,null,262,"A",6,12,0,0]
[null,null,null,null,null,null,null,null,null,null,null,null,null,null,null,null,null,null,null,null,null,null,null,null,null,null,null,null,null,null,null,null,null,null,null,null,null,null,null,null,null,null,null,null,null,null,null,null,null,null,null,null,null,null,null,null,null,null,null,null,null,null,null,null,null,null,null,null,null,null,null,null,null,null,null,null,null,null,null,null,null,null,null,null,263,"A",6,13,1,1]
[null,null,null,null,null,null,null,null,null,null,null,null,null,null,null,null,null,null,null,null,null,null,null,null,null,null,null,null,null,null,null,null,null,null,null,null,null,null,null,null,null,null,null,null,null,null,null,null,null,null,null,null,null,null,null,null,null,null,null,null,null,null,null,null,null,null,null,null,null,null,null,null,null,null,null,null,null,null,null,null,null,null,null,null,264,"A",6,14,1,1]
[null,null,null,null,null,null,null,null,null,null,null,null,null,null,null,null,null,null,null,null,null,null,null,null,null,null,null,null,null,null,null,null,null,null,null,null,null,null,null,null,null,null,null,null,null,null,null,null,null,null,null,null,null,null,null,null,null,null,null,null,null,null,null,null,null,null,null,null,null,null,null,null,null,null,null,null,null,null,null,null,null,null,null,null,265,"A",6,15,1,1]
[null,null,null,null,null,null,null,null,null,null,null,null,null,null,null,null,null,null,null,null,null,null,null,null,null,null,null,null,null,null,null,null,null,null,null,null,null,null,null,null,null,null,null,null,null,null,null,null,null,null,null,null,null,null,null,null,null,null,null,null,null,null,null,null,null,null,null,null,null,null,null,null,null,null,null,null,null,null,null,null,null,null,null,null,266,"A",6,16,1,1]
[null,null,null,null,null,null,null,null,null,null,null,null,null,null,null,null,null,null,null,null,null,null,null,null,null,null,null,null,null,null,null,null,null,null,null,null,null,null,null,null,null,null,null,null,null,null,null,null,null,null,null,null,null,null,null,null,null,null,null,null,null,null,null,null,null,null,null,null,null,null,null,null,null,null,null,null,null,null,null,null,null,null,null,null,267,"A",6,17,1,1]
[null,null,null,null,null,null,null,null,null,null,null,null,null,null,null,null,null,null,null,null,null,null,null,null,null,null,null,null,null,null,null,null,null,null,null,null,null,null,null,null,null,null,null,null,null,null,null,null,null,null,null,null,null,null,null,null,null,null,null,null,null,null,null,null,null,null,null,null,null,null,null,null,null,null,null,null,null,null,null,null,null,null,null,null,268,"A",6,18,1,1]
[null,null,null,null,null,null,null,null,null,null,null,null,null,null,null,null,null,null,null,null,null,null,null,null,null,null,null,null,null,null,null,null,null,null,null,null,null,null,null,null,null,null,null,null,null,null,null,null,null,null,null,null,null,null,null,null,null,null,null,null,null,null,null,null,null,null,null,null,null,null,null,null,null,null,null,null,null,null,null,null,null,null,null,null,269,"A",6,19,1,1]
[null,null,null,null,null,null,null,null,null,null,null,null,null,null,null,null,null,null,null,null,null,null,null,null,null,null,null,null,null,null,null,null,null,null,null,null,null,null,null,null,null,null,null,null,null,null,null,null,null,null,null,null,null,null,null,null,null,null,null,null,null,null,null,null,null,null,null,null,null,null,null,null,null,null,null,null,null,null,null,null,null,null,null,null,270,"A",6,20,1,1]
[null,null,null,null,null,null,null,null,null,null,null,null,null,null,null,null,null,null,null,null,null,null,null,null,null,null,null,null,null,null,null,null,null,null,null,null,null,null,null,null,null,null,null,null,null,null,null,null,null,null,null,null,null,null,null,null,null,null,null,null,null,null,null,null,null,null,null,null,null,null,null,null,null,null,null,null,null,null,null,null,null,null,null,null,271,"A",6,21,1,1]
[null,null,null,null,null,null,null,null,null,null,null,null,null,null,null,null,null,null,null,null,null,null,null,null,null,null,null,null,null,null,null,null,null,null,null,null,null,null,null,null,null,null,null,null,null,null,null,null,null,null,null,null,null,null,null,null,null,null,null,null,null,null,null,null,null,null,null,null,null,null,null,null,null,null,null,null,null,null,null,null,null,null,null,null,272,"A",6,22,0,0]
[null,null,null,null,null,null,null,null,null,null,null,null,null,null,null,null,null,null,null,null,null,null,null,null,null,null,null,null,null,null,null,null,null,null,null,null,null,null,null,null,null,null,null,null,null,null,null,null,null,null,null,null,null,null,null,null,null,null,null,null,null,null,null,null,null,null,null,null,null,null,null,null,null,null,null,null,null,null,null,null,null,null,null,null,273,"A",6,23,1,1]
[null,null,null,null,null,null,null,null,null,null,null,null,null,null,null,null,null,null,null,null,null,null,null,null,null,null,null,null,null,null,null,null,null,null,null,null,null,null,null,null,null,null,null,null,null,null,null,null,null,null,null,null,null,null,null,null,null,null,null,null,null,null,null,null,null,null,null,null,null,null,null,null,null,null,null,null,null,null,null,null,null,null,null,null,274,"A",6,24,1,1]
[null,null,null,null,null,null,null,null,null,null,null,null,null,null,null,null,null,null,null,null,null,null,null,null,null,null,null,null,null,null,null,null,null,null,null,null,null,null,null,null,null,null,null,null,null,null,null,null,null,null,null,null,null,null,null,null,null,null,null,null,null,null,null,null,null,null,null,null,null,null,null,null,null,null,null,null,null,null,null,null,null,null,null,null,275,"A",6,25,0,0]
[null,null,null,null,null,null,null,null,null,null,null,null,null,null,null,null,null,null,null,null,null,null,null,null,null,null,null,null,null,null,null,null,null,null,null,null,null,null,null,null,null,null,null,null,null,null,null,null,null,null,null,null,null,null,null,null,null,null,null,null,null,null,null,null,null,null,null,null,null,null,null,null,null,null,null,null,null,null,null,null,null,null,null,null,276,"A",6,26,0,0]
[null,null,null,null,null,null,null,null,null,null,null,null,null,null,null,null,null,null,null,null,null,null,null,null,null,null,null,null,null,null,null,null,null,null,null,null,null,null,null,null,null,null,null,null,null,null,null,null,null,null,null,null,null,null,null,null,null,null,null,null,null,null,null,null,null,null,null,null,null,null,null,null,null,null,null,null,null,null,null,null,null,null,null,null,277,"A",6,27,1,1]
[null,null,null,null,null,null,null,null,null,null,null,null,null,null,null,null,null,null,null,null,null,null,null,null,null,null,null,null,null,null,null,null,null,null,null,null,null,null,null,null,null,null,null,null,null,null,null,null,null,null,null,null,null,null,null,null,null,null,null,null,null,null,null,null,null,null,null,null,null,null,null,null,null,null,null,null,null,null,null,null,null,null,null,null,278,"A",6,28,1,1]
[null,null,null,null,null,null,null,null,null,null,null,null,null,null,null,null,null,null,null,null,null,null,null,null,null,null,null,null,null,null,null,null,null,null,null,null,null,null,null,null,null,null,null,null,null,null,null,null,null,null,null,null,null,null,null,null,null,null,null,null,null,null,null,null,null,null,null,null,null,null,null,null,null,null,null,null,null,null,null,null,null,null,null,null,279,"A",6,29,1,1]
[null,null,null,null,null,null,null,null,null,null,null,null,null,null,null,null,null,null,null,null,null,null,null,null,null,null,null,null,null,null,null,null,null,null,null,null,null,null,null,null,null,null,null,null,null,null,null,null,null,null,null,null,null,null,null,null,null,null,null,null,null,null,null,null,null,null,null,null,null,null,null,null,null,null,null,null,null,null,null,null,null,null,null,null,280,"A",6,30,1,0]
[null,null,null,null,null,null,null,null,null,null,null,null,null,null,null,null,null,null,null,null,null,null,null,null,null,null,null,null,null,null,null,null,null,null,null,null,null,null,null,null,null,null,null,null,null,null,null,null,null,null,null,null,null,null,null,null,null,null,null,null,null,null,null,null,null,null,null,null,null,null,null,null,null,null,null,null,null,null,null,null,null,null,null,null,281,"A",6,31,"",""]
[null,null,null,null,null,null,null,null,null,null,null,null,null,null,null,null,null,null,null,null,null,null,null,null,null,null,null,null,null,null,null,null,null,null,null,null,null,null,null,null,null,null,null,null,null,null,null,null,null,null,null,null,null,null,null,null,null,null,null,null,null,null,null,null,null,null,null,null,null,null,null,null,null,null,null,null,null,null,null,null,null,null,null,null,282,"A",6,32,"",""]
[null,null,null,null,null,null,null,null,null,null,null,null,null,null,null,null,null,null,null,null,null,null,null,null,null,null,null,null,null,null,null,null,null,null,null,null,null,null,null,null,null,null,null,null,null,null,null,null,null,null,null,null,null,null,null,null,null,null,null,null,null,null,null,null,null,null,null,null,null,null,null,null,null,null,null,null,null,null,null,null,null,null,null,null,283,"A",6,33,"",""]
[null,null,null,null,null,null,null,null,null,null,null,null,null,null,null,null,null,null,null,null,null,null,null,null,null,null,null,null,null,null,null,null,null,null,null,null,null,null,null,null,null,null,null,null,null,null,null,null,null,null,null,null,null,null,null,null,null,null,null,null,null,null,null,null,null,null,null,null,null,null,null,null,null,null,null,null,null,null,null,null,null,null,null,null,284,"A",6,34,"",""]
[null,null,null,null,null,null,null,null,null,null,null,null,null,null,null,null,null,null,null,null,null,null,null,null,null,null,null,null,null,null,null,null,null,null,null,null,null,null,null,null,null,null,null,null,null,null,null,null,null,null,null,null,null,null,null,null,null,null,null,null,null,null,null,null,null,null,null,null,null,null,null,null,null,null,null,null,null,null,null,null,null,null,null,null,285,"A",6,35,"",""]
[null,null,null,null,null,null,null,null,null,null,null,null,null,null,null,null,null,null,null,null,null,null,null,null,null,null,null,null,null,null,null,null,null,null,null,null,null,null,null,null,null,null,null,null,null,null,null,null,null,null,null,null,null,null,null,null,null,null,null,null,null,null,null,null,null,null,null,null,null,null,null,null,null,null,null,null,null,null,null,null,null,null,null,null,286,"A",6,36,"",""]
[null,null,null,null,null,null,null,null,null,null,null,null,null,null,null,null,null,null,null,null,null,null,null,null,null,null,null,null,null,null,null,null,null,null,null,null,null,null,null,null,null,null,null,null,null,null,null,null,null,null,null,null,null,null,null,null,null,null,null,null,null,null,null,null,null,null,null,null,null,null,null,null,null,null,null,null,null,null,null,null,null,null,null,null,287,"A",6,37,"",""]
[null,null,null,null,null,null,null,null,null,null,null,null,null,null,null,null,null,null,null,null,null,null,null,null,null,null,null,null,null,null,null,null,null,null,null,null,null,null,null,null,null,null,null,null,null,null,null,null,null,null,null,null,null,null,null,null,null,null,null,null,null,null,null,null,null,null,null,null,null,null,null,null,null,null,null,null,null,null,null,null,null,null,null,null,288,"A",6,38,"",""]
[null,null,null,null,null,null,null,null,null,null,null,null,null,null,null,null,null,null,null,null,null,null,null,null,null,null,null,null,null,null,null,null,null,null,null,null,null,null,null,null,null,null,null,null,null,null,null,null,null,null,null,null,null,null,null,null,null,null,null,null,null,null,null,null,null,null,null,null,null,null,null,null,null,null,null,null,null,null,null,null,null,null,null,null,289,"A",6,39,"",""]
[null,null,null,null,null,null,null,null,null,null,null,null,null,null,null,null,null,null,null,null,null,null,null,null,null,null,null,null,null,null,null,null,null,null,null,null,null,null,null,null,null,null,null,null,null,null,null,null,null,null,null,null,null,null,null,null,null,null,null,null,null,null,null,null,null,null,null,null,null,null,null,null,null,null,null,null,null,null,null,null,null,null,null,null,290,"A",6,40,"",""]
[null,null,null,null,null,null,null,null,null,null,null,null,null,null,null,null,null,null,null,null,null,null,null,null,null,null,null,null,null,null,null,null,null,null,null,null,null,null,null,null,null,null,null,null,null,null,null,null,null,null,null,null,null,null,null,null,null,null,null,null,null,null,null,null,null,null,null,null,null,null,null,null,null,null,null,null,null,null,null,null,null,null,null,null,291,"A",6,41,"",""]
[null,null,null,null,null,null,null,null,null,null,null,null,null,null,null,null,null,null,null,null,null,null,null,null,null,null,null,null,null,null,null,null,null,null,null,null,null,null,null,null,null,null,null,null,null,null,null,null,null,null,null,null,null,null,null,null,null,null,null,null,null,null,null,null,null,null,null,null,null,null,null,null,null,null,null,null,null,null,null,null,null,null,null,null,292,"A",6,42,"",""]
[null,null,null,null,null,null,null,null,null,null,null,null,null,null,null,null,null,null,null,null,null,null,null,null,null,null,null,null,null,null,null,null,null,null,null,null,null,null,null,null,null,null,null,null,null,null,null,null,null,null,null,null,null,null,null,null,null,null,null,null,null,null,null,null,null,null,null,null,null,null,null,null,null,null,null,null,null,null,null,null,null,null,null,null,293,"A",6,43,"",""]
[null,null,null,null,null,null,null,null,null,null,null,null,null,null,null,null,null,null,null,null,null,null,null,null,null,null,null,null,null,null,null,null,null,null,null,null,null,null,null,null,null,null,null,null,null,null,null,null,null,null,null,null,null,null,null,null,null,null,null,null,null,null,null,null,null,null,null,null,null,null,null,null,null,null,null,null,null,null,null,null,null,null,null,null,294,"A",6,44,"",""]
[null,null,null,null,null,null,null,null,null,null,null,null,null,null,null,null,null,null,null,null,null,null,null,null,null,null,null,null,null,null,null,null,null,null,null,null,null,null,null,null,null,null,null,null,null,null,null,null,null,null,null,null,null,null,null,null,null,null,null,null,null,null,null,null,null,null,null,null,null,null,null,null,null,null,null,null,null,null,null,null,null,null,null,null,295,"A",6,45,"",""]
[null,null,null,null,null,null,null,null,null,null,null,null,null,null,null,null,null,null,null,null,null,null,null,null,null,null,null,null,null,null,null,null,null,null,null,null,null,null,null,null,null,null,null,null,null,null,null,null,null,null,null,null,null,null,null,null,null,null,null,null,null,null,null,null,null,null,null,null,null,null,null,null,null,null,null,null,null,null,null,null,null,null,null,null,296,"A",6,46,"",""]
[null,null,null,null,null,null,null,null,null,null,null,null,null,null,null,null,null,null,null,null,null,null,null,null,null,null,null,null,null,null,null,null,null,null,null,null,null,null,null,null,null,null,null,null,null,null,null,null,null,null,null,null,null,null,null,null,null,null,null,null,null,null,null,null,null,null,null,null,null,null,null,null,null,null,null,null,null,null,null,null,null,null,null,null,297,"A",6,47,"",""]
[null,null,null,null,null,null,null,null,null,null,null,null,null,null,null,null,null,null,null,null,null,null,null,null,null,null,null,null,null,null,null,null,null,null,null,null,null,null,null,null,null,null,null,null,null,null,null,null,null,null,null,null,null,null,null,null,null,null,null,null,null,null,null,null,null,null,null,null,null,null,null,null,null,null,null,null,null,null,null,null,null,null,null,null,298,"A",6,48,"",""]
[null,null,null,null,null,null,null,null,null,null,null,null,null,null,null,null,null,null,null,null,null,null,null,null,null,null,null,null,null,null,null,null,null,null,null,null,null,null,null,null,null,null,null,null,null,null,null,null,null,null,null,null,null,null,null,null,null,null,null,null,null,null,null,null,null,null,null,null,null,null,null,null,null,null,null,null,null,null,null,null,null,null,null,null,299,"A",6,49,"",""]
[null,null,null,null,null,null,null,null,null,null,null,null,null,null,null,null,null,null,null,null,null,null,null,null,null,null,null,null,null,null,null,null,null,null,null,null,null,null,null,null,null,null,null,null,null,null,null,null,null,null,null,null,null,null,null,null,null,null,null,null,null,null,null,null,null,null,null,null,null,null,null,null,null,null,null,null,null,null,null,null,null,null,null,null,300,"A",6,50,"",""]